Cogmind - Beta 14 @@@ ROGUE MODE // 2024.11.18 @ 17:48:38 Player: N.W.L Result: Escaped! Performance ------------- Evolutions (9) 4500 Regions Visited (29) 5800 Robots Destroyed (723) 3615 Value Destroyed (40982) 40982 Prototype IDs (120) 2400 Alien Tech Used (16) 3200 Bonus (31640) 31640 TOTAL SCORE: 92137 Bonus ------- Triggered High Security 1000 High Alert Combat Kills 15619 Follower Combat Kills 2241 Network Hubs Disabled 800 Aligned with FarCom 300 Met Zhirov 300 Built Enhanced Grunts 300 A7 Reached Mainframe 300 Met R17 at Cetus 500 Found Hidden Lab 3000 Met R17 at Research 2000 Scanned by Researcher 500 Pursued by Intercept 2500 Win 3000 Friendly Fire -720 Cogmind --------- Core Integrity 843/1850 Matter 300/300 Energy 86/100 System Corruption 10% Temperature Cool (7) Movement Treading (131) Location To Epsilon Eridani Parts ------- > --- POWER (3) -------- (None) > --- PROPULSION (5) --- Treaded Armored-HC Exoskeleton > --- UTILITY (12) ----- Armored Scrap Engine Advanced Heat Sink Experimental Heat Sink Huge Storage Unit Spectral Analyzer Long-range Sensor Array Experimental Core Analyzer Experimental Core Analyzer Advanced Transmission Jammer Thermal Barrier (fused) Thermal Barrier > --- WEAPON (6) ------- Gamma Rifle Gamma Rifle > --- INVENTORY (25) --- Antigrav System Experimental Coolant Injector Antimissile System High-powered Transdimensional Reconstructor Peak State ------------ > --- POWER ------------ Quantum Reactor Quantum-Chain Reactor > --- PROPULSION ------- Treaded Armored-HC Exoskeleton > --- UTILITY ---------- Armored Scrap Engine Huge Storage Unit Superbattery Spectral Analyzer Experimental Core Analyzer Experimental Core Analyzer Advanced Particle Charger Advanced Transmission Jammer Centrium Medium Armor Plating Thermal Barrier Improved Remote Force Field > --- WEAPON ----------- Sigix Sheargun Sigix Sheargun Sigix Shearcannon Sigix Shearcannon > --- INVENTORY -------- High-density Centrium Heavy Treads Antigrav System Advanced Heat Sink Experimental Heat Sink Experimental Coolant Injector Long-range Sensor Array Thermal Barrier Experimental EM Disruption Field Antimissile System High-powered Transdimensional Reconstructor Gamma Rifle Gamma Rifle [Rating: 258] Favorites ----------- Power Constructs Engine Cooled Ion Engine Reactor Constructs Propulsion Constructs Treads Constructs Leg Enhanced Biometal Leg Hover Unit Cooled Gravmag System Flight Unit Biomechanical Wings Utility Armored Scrap Engine Device Armored Scrap Engine Storage Huge Storage Unit Processor Core Analyzer Hackware Advanced Hacking Suite Protection Hardened Light Armor Plating Artifact LC Capacitor Weapon Constructs Energy Gun Advanced Beam Rifle Energy Cannon Constructs Ballistic Gun AWS/Gauss Ballistic Cannon Heavy Flak Cannon Launcher Grenade Launcher Special Weapon Mining Laser Slashing Weapon Makeshift Sword Build | -11 -10 -10 -9 -9 -9 -8 -8 -8 -8 -6 -6 -6 -6 -6 -5 -5 -5 -5 -4 -4 -4 -4 -3 -3 -2 -2 -2 -1 -1 ------- Run | Yrd Mat Min Mat Min Exi Min Mat Sto Rec Fac Ext Cet Arc Hub Fac Upp Upp Zhi Pro Fac Arm Lab Res Qua Res Tes Sec Acc Com Slots Evolved 18 | . . . 2 . . . 2 . . 4 . . . . 2 . . . . 2 . . 2 . 2 . . 2 . Power 1 | . . . . . . . . . . . . . . . 1 . . . . . . . . . . . . . . Propulsion 3 | . . . . . . . 1 . . 1 . . . . . . . . . 1 . . . . . . . . . Utility 10 | . . . 1 . . . 1 . . 3 . . . . . . . . . 1 . . 2 . 2 . . . . Weapon 4 | . . . 1 . . . . . . . . . . . 1 . . . . . . . . . . . . 2 . Parts Attached 441 | 7 12 8 24 2 7 1 19 34 8 11 25 6 1 27 12 7 3 1 1 15 9 9 12 15 8 44 61 23 29 Power 11 | 1 1 2 2 . . . 1 . . . . . . 1 1 . . . . . . . . . . . . 1 1 Engine 9 | 1 1 2 2 . . . 1 . . . . . . 1 1 . . . . . . . . . . . . . . Core . | . . . . . . . . . . . . . . . . . . . . . . . . . . . . . . Reactor 2 | . . . . . . . . . . . . . . . . . . . . . . . . . . . . 1 1 Propulsion 37 | 2 1 2 4 1 1 . 6 9 . 1 1 . . 4 2 . . . . . . . 1 2 . . . . . Treads 32 | 2 1 2 4 1 1 . 6 9 . 1 1 . . 2 . . . . . . . . 1 1 . . . . . Leg 2 | . . . . . . . . . . . . . . 2 . . . . . . . . . . . . . . . Wheel . | . . . . . . . . . . . . . . . . . . . . . . . . . . . . . . Hover 1 | . . . . . . . . . . . . . . . 1 . . . . . . . . . . . . . . Flight 2 | . . . . . . . . . . . . . . . 1 . . . . . . . . 1 . . . . . Utility 300 | 2 1 . 4 1 6 . 5 9 4 8 16 4 1 22 6 7 3 1 1 15 9 9 11 13 8 44 60 13 17 Device 211 | 1 . . 2 . 1 . 1 3 3 4 14 3 1 16 2 7 2 1 1 11 7 5 9 10 6 37 45 8 11 Storage 13 | 1 1 . . . 2 . . 1 1 1 . . . 2 1 . . . . . . . . . . . 1 . 2 Processor 13 | . . . . . . . . . . 1 1 1 . 2 . . . . . . . . . . . 2 4 . 2 Hackware 18 | . . . . . . . 1 . . 2 1 . . . 3 . . . . 2 2 1 2 . . 2 1 1 . Protection 41 | . . . 2 1 3 . 3 5 . . . . . 2 . . 1 . . 2 . 2 . 3 1 2 8 4 2 Artifact 4 | . . . . . . . . . . . . . . . . . . . . . . 1 . . 1 1 1 . . Weapon 93 | 2 9 4 14 . . 1 7 16 4 2 8 2 . . 3 . . . . . . . . . . . 1 9 11 Energy Gun 58 | 2 4 3 11 . . . 5 11 3 1 5 1 . . . . . . . . . . . . . . 1 4 7 Energy Cannon 14 | . . . 2 . . . 2 1 . . . . . . . . . . . . . . . . . . . 5 4 Ballistic Gun 7 | . . . 1 . . 1 . 2 1 . 1 1 . . . . . . . . . . . . . . . . . Ballistic Cannon 2 | . . . . . . . . . . 1 . . . . 1 . . . . . . . . . . . . . . Launcher 3 | . 2 1 . . . . . . . . . . . . . . . . . . . . . . . . . . . Special Weapon 4 | . 3 . . . . . . . . . . . . . 1 . . . . . . . . . . . . . . Impact Weapon . | . . . . . . . . . . . . . . . . . . . . . . . . . . . . . . Slashing Weapon 5 | . . . . . . . . 2 . . 2 . . . 1 . . . . . . . . . . . . . . Piercing Weapon . | . . . . . . . . . . . . . . . . . . . . . . . . . . . . . . Special Melee Weapon . | . . . . . . . . . . . . . . . . . . . . . . . . . . . . . . Unidentified Prototypes 55 | . . . 5 . 1 . 1 5 1 1 1 1 . 7 2 . . 1 . . 1 3 1 2 1 9 10 2 . Corrupted Parts 1 | . . . . . . . . . . . . . . 1 . . . . . . . . . . . . . . . System Corruption 5 | . . . . . . . . . . . . . . 5 . . . . . . . . . . . . . . . Parts Lost 38 | . . 2 5 . . . . 5 . . 1 . . 3 . . . . . 1 . . 1 . . . 4 6 10 Power 5 | . . 1 . . . . . . . . . . . 1 . . . . . . . . . . . . . . 3 Propulsion 8 | . . 1 1 . . . . 3 . . . . . 2 . . . . . . . . . . . . . . 1 Utility 17 | . . . 1 . . . . 2 . . 1 . . . . . . . . 1 . . 1 . . . 3 5 3 Weapon 8 | . . . 3 . . . . . . . . . . . . . . . . . . . . . . . 1 1 3 Highest Loss Streak 8 | . . 1 3 . . . . 3 . . 1 . . 3 . . . . . 1 . . 1 . . . 2 3 8 To Critical Strikes 1 | . . . . . . . . . . . . . . . . . . . . . . . . . . . 1 . . Average Slot Usage (%) 68 | . 99 88 97 100 97 91 97 99 62 59 63 60 60 60 55 52 52 51 52 51 51 51 47 48 57 54 56 54 60 Engine 4 | . 13 12 11 11 11 11 8 9 8 6 1 3 6 2 1 . . . . . . . . . . . . . . Reactor 2 | . . . . . . . . . . . . 1 . 2 5 5 3 . . . 2 5 4 4 4 4 4 4 6 Treads 10 | . 28 18 20 22 22 22 26 26 15 6 5 6 6 5 . 3 5 5 5 5 5 5 4 4 4 2 4 3 3 Device 15 | . 14 14 16 11 7 . 8 10 9 14 17 19 20 16 15 16 16 16 17 19 19 17 17 19 29 22 19 15 19 Storage 6 | . 14 14 11 11 13 11 9 9 9 6 6 6 6 6 5 5 5 5 5 5 5 5 4 4 4 4 4 3 3 Processor 3 | . . . . . . . . . . 5 2 12 13 12 5 5 5 5 5 1 . . . . . 2 6 7 10 Hackware 4 | . . . . . . . 3 2 . 11 10 . . . 6 5 5 5 5 8 10 8 4 4 4 7 9 7 2 Protection 4 | . . . 4 11 10 22 14 13 7 . . . . 2 . . . . . . . 3 . 1 3 . 2 2 1 Energy Gun 8 | . 23 27 24 33 33 18 23 26 5 . 3 . . . . . . . . . . . . . . . . . 2 Energy Cannon 2 | . . . 8 . . . 2 . 4 6 2 . . 2 1 5 5 5 5 5 5 5 1 . . 4 2 2 5 Ballistic Cannon 1 | . . . . . . . . . 1 . 3 5 6 3 3 . . . . . . . 2 4 3 . 1 3 . Peak Build Rating 258 | 7 7 9 23 24 36 37 43 49 59 75 79 88 90 104 114 115 116 116 115 133 141 169 185 193 201 220 213 244 258 Average Rating 108 | 4 6 7 18 23 25 34 37 42 48 67 71 81 89 91 103 110 111 115 114 126 133 146 179 181 188 203 198 215 227 On Entrance 94 | . 7 7 9 23 24 29 37 38 45 59 70 69 87 89 102 114 108 116 115 113 130 135 169 181 170 195 197 210 194 Naked Turns . | . . . . . . . . . . . . . . . . . . . . . . . . . . . . . . Heaviest Build 254 | 15 31 30 45 40 254 70 84 71 208 248 60 75 72 81 135 140 144 130 136 158 172 185 200 205 225 224 204 243 254 Greatest Support 331 | 40 40 40 40 40 40 40 63 63 69 121 121 68 68 123 166 166 166 166 166 166 166 166 194 206 238 315 331 233 233 Greatest Overweight (x) 66 | . 1 1 1 . 6 1 2 1 3 3 . 1 1 3 . . . . . . 1 1 1 66 1 . . 1 1 Average Overweight (x) . | . . . . . 1 1 . . . . . . 1 . . . . . . . . 1 . 1 . . . . . Largest Inventory Capacity 35 | 8 15 15 15 15 35 20 20 20 35 35 20 20 20 20 25 25 25 25 25 25 25 25 25 25 25 25 25 25 25 Average Capacity 21 | 5 11 15 15 15 21 20 20 20 23 22 20 20 20 20 24 25 25 25 25 25 25 25 25 25 25 25 25 25 25 Most Carried 35 | 4 6 15 15 15 24 20 20 20 35 34 20 20 18 20 25 25 25 25 25 25 25 25 25 25 25 25 25 24 20 Average Carried 20 | 2 5 10 14 14 18 19 19 19 20 21 19 17 18 18 21 22 25 24 25 24 24 24 22 24 23 24 24 21 14 Final Capacity 35 | 8 15 15 15 15 20 20 20 20 35 20 20 20 20 20 25 25 25 25 25 25 25 25 25 25 25 25 25 25 25 Final Carried 35 | 4 6 15 15 15 20 20 20 20 35 18 20 18 18 20 24 25 25 25 25 25 24 25 23 24 24 25 24 20 4 Scrap Engine Consumption 280 | . . . . . . . . . 27 14 28 14 . 17 11 4 9 4 1 9 8 1 15 6 11 28 56 10 7 Constructs Created 8 | . . . . . . . . . 3 . . . . 1 . . . . . . . . . . . . 2 2 . Constructs Modified 115 | . . . . . . . . . 9 6 12 6 1 7 7 2 4 1 . 2 4 1 7 2 3 14 22 2 3 Class Distribution -------------------- 26% | Construct 25% | Hacker-Construct 14% | Tank 11% | Commander-Construct 5% | Mutant 3% | Scavenger-Skirmisher Dominant Class ---------------- Mutant | -10/Materials Mutant | -10/Mines Tank | -9/Materials Tank | -9/Mines Tank | -9/Exiles Tank | -8/Mines Scavenger-Tank | -8/Materials Scavenger-Skirmisher | -8/Storage Commander-Construct | -8/Recycling Commander-Construct | -6/Factory Commander-Construct | -6/Extension Commander-Construct | -6/Cetus Commander-Construct | -6/Archives Construct | -6/Hub_04(d) Construct | -5/Factory Construct | -5/Upper Caves Construct | -5/Upper Caves Construct | -5/Zhirov Construct | -4/Proximity Caves Hacker-Construct | -4/Factory Hacker-Construct | -4/Armory Construct | -4/Lab Construct | -3/Research Construct | -3/Quarantine Construct | -2/Research Hacker-Construct | -2/Testing Hacker-Construct | -2/Section 7 Hacker-Construct | -1/Access Scavenger-Executioner | -1/Command Resources | -11 -10 -10 -9 -9 -9 -8 -8 -8 -8 -6 -6 -6 -6 -6 -5 -5 -5 -5 -4 -4 -4 -4 -3 -3 -2 -2 -2 -1 -1 ----------- Run | Yrd Mat Min Mat Min Exi Min Mat Sto Rec Fac Ext Cet Arc Hub Fac Upp Upp Zhi Pro Fac Arm Lab Res Qua Res Tes Sec Acc Com Matter Collected 10263 | 270 110 150 235 10 17 87 143 584 259 316 678 178 33 860 148 130 21 47 15 230 112 81 186 198 80 554 2950 1055 526 Remotely 1361 | . . . . . . . . . . . . . . . . . . . . . . . . . . . 1227 134 . Salvage Created 46891 | 259 379 203 1884 53 . 250 410 2037 475 375 1001 . 33 2157 537 695 . 100 100 4073 2314 81 2006 2368 1438 4820 6470 2540 9833 Parts 1812 | 15 26 15 101 3 . 8 31 113 22 18 57 . 1 115 20 21 . 1 1 83 37 6 89 130 58 212 257 121 251 Haulers Intercepted 32 | . . . 5 . . . 2 6 . . . . . . 2 . . . . 3 . . 1 2 1 . 5 5 . Recyclers Shooed 11 | 1 1 . . . . . . 1 4 . . . . 1 . . . . . . . . . . . . . 2 1 Parts Field Recycled . | . . . . . . . . . . . . . . . . . . . . . . . . . . . . . . Retrieved Matter . | . . . . . . . . . . . . . . . . . . . . . . . . . . . . . . Parts Self-Destructed 17 | . . . . . . . . . . . . . . . . 17 . . . . . . . . . . . . . Prevented 2 | . . . . . . . . . . . . . . . . . . 1 1 . . . . . . . . . . Kills | -11 -10 -10 -9 -9 -9 -8 -8 -8 -8 -6 -6 -6 -6 -6 -5 -5 -5 -5 -4 -4 -4 -4 -3 -3 -2 -2 -2 -1 -1 ------- Run | Yrd Mat Min Mat Min Exi Min Mat Sto Rec Fac Ext Cet Arc Hub Fac Upp Upp Zhi Pro Fac Arm Lab Res Qua Res Tes Sec Acc Com Combat Hostiles Destroyed 559 | . 10 8 28 . . 5 3 26 3 6 16 . . 27 2 8 . . 5 45 29 1 33 32 13 50 69 26 114 Melee 2 | . . . . . . . . . . . . . . . . . . . . . . . . . . . 2 . . Guns 72 | . 6 5 21 . . 5 3 25 2 . 1 . . . . . . . . . . . . . . . . 3 1 Cannons 434 | . . . 5 . . . . . 1 6 15 . . 27 2 8 . . 5 35 15 1 33 32 10 47 59 22 111 AOE 6 | . 3 3 . . . . . . . . . . . . . . . . . . . . . . . . . . . Classes Destroyed 31 | 3 5 . 4 . . 1 . 1 2 . 2 . . 1 . 1 . . 1 . 1 . 2 1 1 1 2 . 2 Worker 42 | 2 . 1 3 2 . . 2 10 . . . . . 2 . . . . . 1 . . 1 2 1 . 2 6 7 Builder 22 | . . . 1 . . . . 1 . . . . . . . . . . . 2 . . . 2 2 2 3 9 . Tunneler 7 | 6 . . . . . . . . . . . . . . . . . . . . . . . . . . . 1 . Hauler 32 | . . . 5 . . . 2 6 . . . . . . 2 . . . . 3 . . 1 2 1 . 5 5 . Recycler 31 | 1 . 1 3 . . . 1 2 3 . . . . 3 1 . . . . 3 . . . . 2 . 7 1 3 Carrier 1 | . . . . . . . . . . . . . . . . . . . . . . . . . . . . . 1 Mechanic 14 | . 1 . 1 . . . . . . . . . . . . . . . . . 1 . . . 1 3 . . 7 Operator 16 | . 1 . 1 . . . 2 1 . . 3 . . . 2 . . . . 2 . . 1 . 1 . . 1 1 Drone 1 | . . . . . . . . . . . . . . . . . . . 1 . . . . . . . . . . Watcher 28 | . 3 . 2 . . . . 2 . 1 . . . 2 1 . . . . 2 3 . . . . 2 5 5 . Swarmer 63 | . 3 6 2 . . . . . . 1 3 . . 2 . . . . 4 4 1 . 13 6 4 4 5 5 . Saboteur 6 | . . . . . . . . . . . . . . . . . . . . . . . . . . . . . 6 Grunt 184 | . 7 2 18 . . 4 . 12 1 1 3 . . 8 1 2 . . . 20 8 . 12 4 . 15 7 5 54 Brawler 21 | . . . . . . 1 . 1 . . 1 . . . . . . . . 1 3 . . . . 3 2 . 9 Duelist 27 | . . . 1 . . . . 2 . 2 . . . . . 1 . . . 1 2 . . . . . 2 . 16 Protector 11 | . . . . . . . . 2 1 . . . . 1 . . . . . 1 . . . . . 1 1 . 4 Researcher 2 | . . . . . . . . . . . . . . . . . . . . . . . . 1 . . 1 . . Sentry 58 | . . . 7 . . . 3 9 . 2 6 . . 6 1 1 . . . 9 6 . 1 . . 3 3 1 . Demolisher 1 | . . . . . . . . . . . . . . . . . . . . . . . 1 . . . . . . Specialist 9 | . . . . . . . . . . . . . . . . . . . . . 4 . . 3 2 . . . . Hunter 23 | . . . . . . . . . . . 1 . . . . . . . . 3 3 . 2 2 . 4 4 2 2 Programmer 72 | . . . . . . . . . . . . . . 3 . 4 . . . 5 1 . . 13 4 8 15 8 11 Heavy 1 | . . . . . . . . . . . . . . . . . . . . . . . . . 1 . . . . Behemoth 11 | . . . . . . . . . . . 2 . . . . . . . . 1 1 . 1 . 2 . 2 1 1 S7 Guard 2 | . . . . . . . . . . . . . . . . . . . . . . . . . . . 2 . . Lightning 7 | . . . . . . . . . . . . . . 7 . . . . . . . . . . . . . . . Tracker 18 | . . . . . . . . . . . . . . . . . . . . . . . . 2 . 5 9 2 . Combat Programmer 18 | . . . . . . . . . . . . . . . . . . . . . . . . 2 . 5 9 2 . Investigator 1 | . . . . . . . . . . . . . . . . . . . . . . . . . . . . . 1 Striker 14 | . . . . . . . . . . . . . . . . . . . . . . . 3 . . . 4 . 7 Executioner 6 | . . . . . . . . . . . . . . . . . . . . . . . . . . . 2 . 4 Alpha 7 2 | . . . . . . . . . . . . . . . . . . . . . . . . . . . 2 . . Fortress 1 | . . . . . . . . . . . . . . . . . . . . . . . . . . 1 . . . Protovariant G 1 | . . . . . . . . . . . . . . . . . . . . . . . . . . 1 . . . Scientist 1 | . . . . . . . . . 1 . . . . . . . . . . . . . . . . . . . . Scrapper 3 | . . . . . . . . . 3 . . . . . . . . . . . . . . . . . . . . Packrat 2 | . . . . . . . . . . . . . . . . 2 . . . . . . . . . . . . . Samaritan 1 | . . . . . . . . . . . . . . . . 1 . . . . . . . . . . . . . Best Kill Streak 21 | 4 4 3 7 2 . 3 2 7 3 3 4 . . 9 2 3 . . 4 8 9 1 8 7 5 8 13 10 21 Combat Bots Only 18 | . 3 3 3 . . 3 1 5 2 3 4 . . 8 1 3 . . 4 8 9 1 8 6 4 7 7 5 18 Max Kills in Single Turn 5 | 1 2 2 2 1 . 1 1 2 2 1 1 . . 1 2 1 . . 1 2 2 1 2 1 2 2 2 2 5 Gunslinging 1 | . . . 1 . . . . . . . . . . . . . . . . . . . . . . . . . . Exploded 2 | . 1 2 . . . . . . . . . . . . . . . . . . . . . . . . . . . Melee 1 | . . . . . . . . . . . . . . . . . . . . . . . . . . . 1 . . Uniques/NPCs Destroyed 1 | . . . . . . . . . . . . . . . . . . . . . . 1 . . . . . . . A5 (-4/Lab) Combat | -11 -10 -10 -9 -9 -9 -8 -8 -8 -8 -6 -6 -6 -6 -6 -5 -5 -5 -5 -4 -4 -4 -4 -3 -3 -2 -2 -2 -1 -1 -------- Run | Yrd Mat Min Mat Min Exi Min Mat Sto Rec Fac Ext Cet Arc Hub Fac Upp Upp Zhi Pro Fac Arm Lab Res Qua Res Tes Sec Acc Com Hostile Shots Fired 2684 | . 45 23 104 . . 9 2 76 23 36 168 8 . 176 43 20 . . 29 89 54 9 106 195 80 253 395 341 400 Missed 638 | . 18 5 32 . . 5 2 15 5 9 52 1 . 50 19 7 . . 10 33 15 . 30 44 33 49 69 78 57 Damage Taken 28373 | . 307 422 892 . . 63 . 1272 376 495 966 278 . 2040 251 272 . . 281 1169 644 114 1513 1450 870 3118 3082 3581 4917 Core 2644 | . 72 92 167 . . . . 147 46 46 43 78 . 72 . 68 . . 14 67 44 . 80 48 116 728 111 189 416 Absorbed by Shields 6486 | . . . 80 . . . . 73 . . 59 13 . 96 . . . . . 93 392 . 311 770 225 961 1534 548 1331 Reduced by Siege Mode 1311 | . . . . . . . . . . . . . . 80 . . . . . 21 28 10 64 121 96 91 233 43 524 Redirected to Core 692 | . . . . . . . . . . . . . . . . . . . . . . . . . 104 588 . . . Ignored by Resistances 10579 | . . . . . . . . . . . . . . 839 . . . . . . . 119 . 632 . 890 3888 1848 2363 Regen/Repaired (Parts) 12344 | . . . 105 . . . 65 102 63 379 606 219 57 663 335 145 100 56 . 363 586 324 1312 563 621 848 2985 721 1126 Core Remaining (%) 71 | 100 . 34 . . . 58 . . 64 . . . . 71 . . . . 91 . . 82 . 90 . . 80 . 45 Volleys Fired 1872 | 28 34 21 99 4 . 6 29 100 31 21 61 16 29 104 18 34 7 3 13 99 49 17 81 96 51 164 284 188 185 Largest 4 | 2 2 2 3 1 . 1 3 3 3 1 2 1 1 1 1 1 1 1 1 1 1 1 1 1 1 1 1 2 4 Hottest 560 | 100 100 100 199 61 . 61 183 183 183 170 250 255 255 138 184 184 184 184 184 184 184 184 184 184 184 440 142 322 560 Shots Fired 2437 | 56 61 39 253 4 . 33 58 296 46 21 62 16 29 101 18 34 7 3 13 98 49 17 81 96 51 162 272 190 271 Gun 791 | 56 54 36 197 4 . 33 43 293 26 . 3 2 . . . . . . . . . . . . . . . 18 26 Cannon 1636 | . . . 56 . . . 15 3 20 21 59 14 29 101 18 34 7 3 13 98 49 17 81 96 51 162 272 172 245 Launcher 7 | . 4 3 . . . . . . . . . . . . . . . . . . . . . . . . . . . Special 3 | . 3 . . . . . . . . . . . . . . . . . . . . . . . . . . . . Kinetic 590 | . . . . . . 27 1 . 9 11 . . . . 15 4 . . . . . . 51 96 40 91 199 44 2 Thermal 1284 | 56 57 36 253 4 . 6 57 296 37 10 62 16 29 101 3 30 4 . . 14 . 17 30 . . 70 9 64 23 Explosive 7 | . 4 3 . . . . . . . . . . . . . . . . . . . . . . . . . . . Electromagnetic 260 | . . . . . . . . . . . . . . . . . 3 3 13 84 49 . . . 11 1 64 . 32 Slashing 296 | . . . . . . . . . . . . . . . . . . . . . . . . . . . . 82 214 Robot Hit Streak 55 | 5 6 8 15 5 . 11 13 13 16 9 10 4 2 9 6 8 . 2 4 20 7 11 9 11 3 17 19 31 55 Robot Miss Streak 7 | 4 2 3 3 . . 1 4 3 2 2 2 2 . 4 1 2 . . 3 3 4 . 4 3 3 4 6 6 7 Penetration Max 1 | . . . . . . . . . . . . . . . 1 . . . . . . . 1 1 1 . 1 1 1 Secondary Targets 6 | . . . 3 . . . . 3 . . . . . . . . . . . . . . . . . . . . . Max Gunslinging Chain 1 | . . . 1 . . . . 1 . . . . . . . . . . . . . . . . . . . . . Capacitor 191 | . . . . . . . . . . . . . . . . . . . . . . . . . 11 91 89 . . Autonomous 28 | . . . . . . 27 1 . . . . . . . . . . . . . . . . . . . . . . Shots Hit Robots 1399 | 28 33 22 153 4 . 27 22 160 32 8 39 8 2 58 10 19 . 1 7 62 35 4 46 54 22 98 179 83 183 Core Hits 1118 | 9 21 14 64 2 . 9 11 71 10 7 16 1 1 31 5 5 . . 3 30 11 2 24 16 5 39 105 125 481 Critical Kills 8 | . . . . . . . . . . . . . . . . . . . . . . . . . . 4 4 . . Critical Parts Destroyed 7 | . . . . . . 1 . . . . . . . . . . . . . . . . . 3 . 1 2 . . Critical Strikes 103 | 5 7 4 7 1 . 2 . 21 4 . . . . . . . . . . . . . . 3 . 5 6 5 33 Burn 50 | 5 7 4 7 1 . 1 . 21 4 . . . . . . . . . . . . . . . . . . . . Meltdown 7 | . . . . . . . . . . . . . . . . . . . . . . . . . . 4 3 . . Destroy 8 | . . . . . . 1 . . . . . . . . . . . . . . . . . 3 . 1 3 . . Sever 38 | . . . . . . . . . . . . . . . . . . . . . . . . . . . . 5 33 Melee Attacks 17 | . . . . . . . . 9 . . 1 . . . 7 . . . . . . . . . . . . . . Impact . | . . . . . . . . . . . . . . . . . . . . . . . . . . . . . . Slashing 17 | . . . . . . . . 9 . . 1 . . . 7 . . . . . . . . . . . . . . Piercing . | . . . . . . . . . . . . . . . . . . . . . . . . . . . . . . Sneak Attacks 2 | . . . . . . . . . . . . . . . 2 . . . . . . . . . . . . . . Combat Hostiles . | . . . . . . . . . . . . . . . . . . . . . . . . . . . . . . Follow-up Attacks . | . . . . . . . . . . . . . . . . . . . . . . . . . . . . . . Damage Inflicted 160410 | 326 811 606 2751 85 . 739 494 3354 1363 725 3356 1001 178 6458 1200 2879 . 132 1393 12986 7364 675 11807 13579 6143 22117 23539 9218 25131 Guns 8923 | 326 453 270 1854 80 . 739 494 3349 453 . 57 45 . . . . . . . . . . . . . . . 427 376 Cannons 150176 | . . . 897 . . . . . 910 725 3299 956 178 6445 860 2879 . 132 1393 12972 7364 675 11807 13574 6031 22117 23428 8783 24751 Explosions 952 | . 358 336 . . . . . . . . . . . . 171 . . . . . . . . . 87 . . . . Melee 169 | . . . . . . . . . . . . . . . 169 . . . . . . . . . . . . . . Ramming 190 | . . . . 5 . . . 5 . . . . . 13 . . . . . 14 . . . 5 25 . 111 8 4 Kinetic 62694 | . . . . . . 659 26 . 133 476 . . . . 661 581 . . . . . . 7513 13574 5192 11746 18206 3707 220 Thermal 44107 | 326 453 270 2751 80 . 80 468 3349 1230 249 3356 1001 178 6445 261 2298 . . . 2219 . 675 4294 . . 10179 1377 . 2568 Explosive 890 | . 358 336 . . . . . . . . . . . . 109 . . . . . . . . . 87 . . . . Electromagnetic 26069 | . . . . . . . . . . . . . . . . . . 132 1393 10753 7364 . . . 839 192 3845 . 1551 Impact . | . . . . . . . . . . . . . . . . . . . . . . . . . . . . . . Slashing 26460 | . . . . . . . . . . . . . . . 169 . . . . . . . . . . . . 5503 20788 Piercing . | . . . . . . . . . . . . . . . . . . . . . . . . . . . . . . Highest Corruption 18 | . . . . . . . . 3 3 5 5 . . 15 . 2 . . . 2 2 3 . 12 4 11 18 9 10 Average Corruption 6 | . . . . . . . . 3 3 3 4 . . 12 . 1 . . . 1 2 2 . 7 3 6 14 3 9 Corruption Purged 7 | . . . . . . . . . . . 5 . . . . 2 . . . . . . . . . . . . . Corruption Blocked . | . . . . . . . . . . . . . . . . . . . . . . . . . . . . . . Effects 594 | . . . . . . . . 58 47 17 43 . . 45 . 2 . . . 13 14 13 . 36 6 57 168 18 57 Message Errors 137 | . . . . . . . . 10 10 5 9 . . 6 . 2 . . . 2 2 3 . 10 3 15 37 8 15 Matter Fused 120 | . . . . . . . . 13 11 4 13 . . 10 . . . . . 3 3 4 . 6 . 12 30 3 8 Heat Flow Errors 69 | . . . . . . . . 6 5 2 3 . . 4 . . . . . 2 3 . . 5 1 6 23 . 9 Energy Discharges 82 | . . . . . . . . 8 11 2 4 . . 3 . . . . . 2 . 4 . 6 1 9 25 1 6 Parts Rejected 10 | . . . . . . . . . . . 1 . . 1 . . . . . 1 . . . . 1 2 3 1 . Parts Fused 9 | . . . . . . . . 2 1 1 1 . . 2 . . . . . . . . . . . . 2 . . Data Loss (minor) 77 | . . . . . . . . 9 5 2 6 . . 8 . . . . . 1 1 2 . 8 . 8 18 1 8 Data Loss (major) 38 | . . . . . . . . 3 2 1 2 . . 3 . . . . . 1 4 . . 1 . 3 10 3 5 Misfires 9 | . . . . . . . . 5 . . . . . . . . . . . . . . . . . . . . 4 Alerts 18 | . . . . . . . . 1 1 . 4 . . 3 . . . . . . 1 . . . . . 6 . 2 Misdirections 4 | . . . . . . . . . . . . . . 2 . . . . . . . . . . . . 2 . . Weapon Failures 21 | . . . . . . . . 1 1 . . . . 3 . . . . . 1 . . . . . 2 12 1 . Overload Shots . | . . . . . . . . . . . . . . . . . . . . . . . . . . . . . . Overflow Damage 31255 | . 30 41 15 . . . . . 222 7 452 87 15 870 185 1128 . . 524 3459 1943 . 2898 5931 3056 5282 3331 913 866 Projectiles 31074 | . . . 15 . . . . . 222 7 452 87 15 870 75 1128 . . 524 3459 1943 . 2898 5931 3056 5282 3331 913 866 Explosions 121 | . 30 41 . . . . . . . . . . . . 50 . . . . . . . . . . . . . . Melee 60 | . . . . . . . . . . . . . . . 60 . . . . . . . . . . . . . . Knockbacks 101 | . . . . . . . . . . 1 . . . . . . . . . . . . 12 17 3 8 46 12 2 Impact . | . . . . . . . . . . . . . . . . . . . . . . . . . . . . . . Kinetic 94 | . . . . . . . . . . 1 . . . . . . . . . . . . 12 17 3 7 42 10 2 Secondary 7 | . . . . . . . . . . . . . . . . . . . . . . . . . . 1 4 2 . Self-Inflicted Damage 228 | . 22 103 . . . . . . . . . . . . . . . . . . . . . . 103 . . . . Shots 5 | . 1 3 . . . . . . . . . . . . . . . . . . . . . . 1 . . . . Rammed 12 | . . . . 1 . . . . . . . . . 1 . . . . . 1 . . . . 1 . 6 1 1 Targets Rammed 16 | . . . . 1 . . . 1 . . . . . 1 . . . . . 1 . . . 1 1 . 8 1 1 Kicked . | . . . . . . . . . . . . . . . . . . . . . . . . . . . . . . Crushed 4 | . . . . . . . . 1 . . . . . . . . . . . . . . . 1 . . 2 . . Highest Temperature 665 | 240 327 134 501 . . 138 189 665 453 549 374 519 297 442 134 395 327 . 346 340 453 297 356 110 259 463 239 178 178 Average Temperature 124 | 100 87 48 164 . . 60 61 139 148 174 143 158 118 117 59 129 149 . 159 77 140 135 125 62 81 128 103 87 133 Received Heat Transfer 3097 | . 120 18 414 . . 54 . 436 153 36 195 . . 391 18 9 . . . 206 105 . 64 9 8 192 95 136 438 Effects 52 | 1 . . 11 . . . . 16 2 4 3 1 . 2 . . 2 . . . . . 1 . . 5 4 . . Shutdowns 4 | . . . 2 . . . . 2 . . . . . . . . . . . . . . . . . . . . . Energy Bleed 11 | 1 . . 1 . . . . 4 . 1 2 . . 1 . . . . . . . . . . . . 1 . . Interference 15 | . . . 7 . . . . . . . . . . . . . 2 . . . . . 1 . . 2 3 . . Matter Decay 4 | . . . . . . . . 3 . . . . . . . . . . . . . . . . . 1 . . . Short Circuit 7 | . . . . . . . . . 2 . 1 1 . 1 . . . . . . . . . . . 2 . . . Damage (minor) 4 | . . . 1 . . . . 3 . . . . . . . . . . . . . . . . . . . . . Damage (major) 7 | . . . . . . . . 4 . 3 . . . . . . . . . . . . . . . . . . . Siege Activations 76 | . . . . . . . . . . . . . . 3 . . . . . 8 5 1 7 8 1 11 19 4 9 Total Turns 1446 | . . . . . . . . . . . . . . 42 . . . . . 142 70 11 63 116 12 86 257 29 618 Longest Duration 238 | . . . . . . . . . . . . . . 24 . . . . . 46 33 11 15 40 12 25 52 10 238 Robots Corrupted 41 | . . . . . . . . . . . . . . . . . . 1 . 12 14 . . . 3 . 8 1 2 Combat Hostiles 36 | . . . . . . . . . . . . . . . . . . 1 . 10 14 . . . 3 . 5 1 2 Parts Fried 243 | . . . . . . . . . . . . . . . . . . . 6 105 77 . . . 7 2 39 1 6 Impact Corruptions 3 | . . . . . . . . . . . . . . . . . . . . . . . . . . . 1 2 . Robots Melted 12 | 1 1 . 2 . . . . 1 . . . . . . . . . . . . . . . . . 4 3 . . Combat Hostiles 11 | . 1 . 2 . . . . 1 . . . . . . . . . . . . . . . . . 4 3 . . Parts Melted 68 | 4 . 5 15 . . . 2 14 2 . . 1 . . 1 1 . . . 1 1 . 1 . . 14 6 . . Heat Transferred 29575 | 1332 1776 1073 6269 222 . 222 851 7475 1381 240 1259 444 74 2069 124 750 . . . 650 . 129 703 . . 1626 277 . 629 Parts Sabotaged 4 | . . . . . . . . . . . . . . . . . . . . . . . . . . . . . 4 Parts Stolen . | . . . . . . . . . . . . . . . . . . . . . . . . . . . . . . Parts Stripped . | . . . . . . . . . . . . . . . . . . . . . . . . . . . . . . Power Chain Reactions . | . . . . . . . . . . . . . . . . . . . . . . . . . . . . . . Alert | -11 -10 -10 -9 -9 -9 -8 -8 -8 -8 -6 -6 -6 -6 -6 -5 -5 -5 -5 -4 -4 -4 -4 -3 -3 -2 -2 -2 -1 -1 ------- Run | Yrd Mat Min Mat Min Exi Min Mat Sto Rec Fac Ext Cet Arc Hub Fac Upp Upp Zhi Pro Fac Arm Lab Res Qua Res Tes Sec Acc Com Peak Influence 3939 | 45 361 268 409 151 . 110 101 564 234 481 422 478 434 477 242 . . . . 773 1077 . 601 506 425 1235 1767 1565 3939 Initial 1100 | . 29 101 1 141 . . . 16 219 449 48 236 142 141 233 . . . . . 331 . . 290 284 238 452 1100 1001 Average 402 | 25 172 87 234 47 . 17 36 182 110 296 176 296 209 170 148 . . . . 390 673 . 325 308 156 706 719 1084 1886 Maximum Alert Level 5 | . 1 1 2 . . . . 2 1 2 2 2 2 2 1 . . . . 3 3 . 2 2 2 4 5 4 5 Low Security (%) 43 | 100 70 79 44 100 . 100 100 54 80 35 63 31 82 65 81 . . . . 22 . . 14 13 61 . 16 . . Level 1 24 | . 29 20 51 . . . . 34 19 25 29 63 3 29 18 . . . . 23 7 . 48 64 34 9 12 . . Level 2 14 | . . . 3 . . . . 10 . 38 7 5 13 4 . . . . . 48 54 . 36 21 4 26 26 16 . Level 3 8 | . . . . . . . . . . . . . . . . . . . . 6 37 . . . . 61 19 33 13 Level 4 6 | . . . . . . . . . . . . . . . . . . . . . . . . . . 2 19 49 38 Level 5 . | . . . . . . . . . . . . . . . . . . . . . . . . . . . . . 8 High Security 2 | . . . . . . . . . . . . . . . . . . . . . . . . . . . 4 . 39 Max Security . | . . . . . . . . . . . . . . . . . . . . . . . . . . . . . . Squads Dispatched 148 | . 4 2 4 . . . . 5 . 1 1 . . 7 2 . . . . 5 7 . 8 12 3 16 29 12 30 Investigation 18 | . 4 2 2 . . . . . . . . . . 1 1 . . . . 1 . . 5 . . . . . 2 Extermination 30 | . . . . . . . . . . 1 . . . 2 . . . . . 1 2 . . 5 2 5 6 4 2 Reinforcement 25 | . . . 2 . . . . 2 . . 1 . . 3 1 . . . . 2 2 . 2 4 1 1 2 2 . Assault 48 | . . . . . . . . 3 . . . . . 1 . . . . . 1 3 . . . . 3 8 3 26 Garrison . | . . . . . . . . . . . . . . . . . . . . . . . . . . . . . . Intercept 27 | . . . . . . . . . . . . . . . . . . . . . . . 1 3 . 7 13 3 . Searches Triggered 1 | . . . . . . . . . . 1 . . . . . . . . . . . . . . . . . . . Construction Impeded 1 | . . . . . . . . 1 . . . . . . . . . . . . . . . . . . . . . Haulers Reinforced 5 | . . . . . . . . . . . . . . . . . . . . 1 . . 1 2 . . 1 . . Active Scanning Responses . | . . . . . . . . . . . . . . . . . . . . . . . . . . . . . . Cargo Convoy Interrupts . | . . . . . . . . . . . . . . . . . . . . . . . . . . . . . . Stealth | -11 -10 -10 -9 -9 -9 -8 -8 -8 -8 -6 -6 -6 -6 -6 -5 -5 -5 -5 -4 -4 -4 -4 -3 -3 -2 -2 -2 -1 -1 --------- Run | Yrd Mat Min Mat Min Exi Min Mat Sto Rec Fac Ext Cet Arc Hub Fac Upp Upp Zhi Pro Fac Arm Lab Res Qua Res Tes Sec Acc Com Distress Signals 27 | . . . 3 . . . . 2 . . 3 2 1 4 1 . . . . 2 1 . 5 . . . 2 1 . Communications Jammed 136 | . . . . . . . . . . . . . . . . . . . . . . . . . 11 13 . 77 35 Distress Signals 134 | . . . . . . . . . . . . . . . . . . . . . . . . . 10 13 . 76 35 Times Spotted 832 | . 19 10 42 . . 7 4 40 6 10 28 10 9 45 13 8 2 . 7 52 36 1 37 35 20 62 92 65 172 Peak Tracking Total 17 | . 4 3 4 . . 3 1 6 4 3 5 5 8 7 6 3 3 . 5 6 6 1 6 6 5 8 10 9 17 Tactical Retreats 45 | . . 1 3 . . . . 1 . . 2 . . 2 . . 2 . 1 6 1 . . 1 2 3 3 5 12 Traps | -11 -10 -10 -9 -9 -9 -8 -8 -8 -8 -6 -6 -6 -6 -6 -5 -5 -5 -5 -4 -4 -4 -4 -3 -3 -2 -2 -2 -1 -1 ------- Run | Yrd Mat Min Mat Min Exi Min Mat Sto Rec Fac Ext Cet Arc Hub Fac Upp Upp Zhi Pro Fac Arm Lab Res Qua Res Tes Sec Acc Com Traps Triggered 20 | . 3 . . . . . . 3 . 6 . . . . . . . . . 1 1 . 1 . . 1 2 1 1 Indirectly . | . . . . . . . . . . . . . . . . . . . . . . . . . . . . . . Trap Hack Attempts . | . . . . . . . . . . . . . . . . . . . . . . . . . . . . . . Triggered . | . . . . . . . . . . . . . . . . . . . . . . . . . . . . . . Disarmed 2 | . . . . . . . . . . . . . . . . . . . . . . . . . . . 2 . . Reprogrammed 4 | . . . . . . . . . . . . . . . . . . . . 4 . . . . . . . . . Reused . | . . . . . . . . . . . . . . . . . . . . . . . . . . . . . . Traps Extracted 4 | . . . . . . . . . . . . . . . . 2 2 . . . . . . . . . . . . Installed 2 | . . . . . . . . . . . . . . . . . 2 . . . . . . . . . . . . Triggered 1 | . . . . . . . . . . . . . . 1 . . . . . . . . . . . . . . . Most Traps Carried 3 | . . 3 3 3 3 3 3 . . . . . . . . 2 2 2 2 2 2 2 2 2 2 2 . . . Machines | -11 -10 -10 -9 -9 -9 -8 -8 -8 -8 -6 -6 -6 -6 -6 -5 -5 -5 -5 -4 -4 -4 -4 -3 -3 -2 -2 -2 -1 -1 ---------- Run | Yrd Mat Min Mat Min Exi Min Mat Sto Rec Fac Ext Cet Arc Hub Fac Upp Upp Zhi Pro Fac Arm Lab Res Qua Res Tes Sec Acc Com Machines Disabled 95 | . 1 . 4 . . . 2 4 3 1 4 1 2 2 3 . . 1 . 5 2 4 4 10 1 12 21 4 4 Max in Single Turn 2 | . 1 . 1 . . . 1 1 1 1 1 1 1 1 2 . . 1 . 1 1 1 1 1 1 1 2 1 1 Garrison Access 9 | . . . . . . . . . . . . . . 2 1 . . . . 2 . . 1 . 1 1 1 . . Network Hub 4 | . . . . . . . . . . . . . . 4 . . . . . . . . . . . . . . . Machines Repaired . | . . . . . . . . . . . . . . . . . . . . . . . . . . . . . . Machines Dismantled . | . . . . . . . . . . . . . . . . . . . . . . . . . . . . . . Machines Sabotaged . | . . . . . . . . . . . . . . . . . . . . . . . . . . . . . . Overloaded Fab Kills . | . . . . . . . . . . . . . . . . . . . . . . . . . . . . . . Hacking | -11 -10 -10 -9 -9 -9 -8 -8 -8 -8 -6 -6 -6 -6 -6 -5 -5 -5 -5 -4 -4 -4 -4 -3 -3 -2 -2 -2 -1 -1 --------- Run | Yrd Mat Min Mat Min Exi Min Mat Sto Rec Fac Ext Cet Arc Hub Fac Upp Upp Zhi Pro Fac Arm Lab Res Qua Res Tes Sec Acc Com Machines Accessed 170 | . 9 2 7 . 1 1 5 18 9 7 13 . . 8 11 . . 4 . 12 5 2 5 10 3 10 17 5 6 Terminals 116 | . 8 1 5 . . 1 4 17 . 5 12 . . 7 7 . . . . 7 2 . 1 9 2 6 13 4 5 Fabricators 10 | . . . . . . . . . . 1 . . . . 2 . . . . 2 2 . 1 . . 1 . 1 . Repair Stations 9 | . . . 1 . . . 1 1 . . . . . . . . . . . . 1 . . 1 . 1 2 . 1 Recycling Units 14 | . 1 . 1 . . . . . 8 1 1 . . . . . . . . 1 . . 1 . . . . . . Scanalyzers 4 | . . . . . . . . . . . . . . . 1 . . . . . . . 1 . . 1 1 . . Garrison Access 8 | . . . . . . . . . . . . . . 1 1 . . . . 2 . . 1 . 1 1 1 . . Total Hacks 722 | . 33 5 19 . 1 1 17 50 31 16 37 . . 34 74 . . 17 . 64 28 8 17 56 23 61 88 15 27 Successful 376 | . 16 2 10 . 1 . 10 26 15 10 24 . . 13 35 . . 17 . 33 18 8 7 25 12 28 45 11 10 Failed 346 | . 17 3 9 . . 1 7 24 16 6 13 . . 21 39 . . . . 31 10 . 10 31 11 33 43 4 17 Catastrophic 55 | . . 1 1 . . . . 3 3 1 . . . 5 4 . . . . 10 1 . 1 6 . 4 8 1 6 Database Lockouts . | . . . . . . . . . . . . . . . . . . . . . . . . . . . . . . Manual 311 | . 25 4 11 . 2 1 11 25 9 10 16 1 . 3 46 . . . . 36 7 . . 18 15 27 33 4 7 Terminals 546 | . 27 4 15 . . 1 12 46 . 12 34 . . 33 66 . . . . 49 14 . 5 54 20 44 76 11 23 Fabricators 42 | . . . . . . . . . . 2 . . . . 6 . . . . 9 12 . 5 . . 4 . 4 . Repair Stations 34 | . . . 3 . . . 5 4 . . . . . . . . . . . . 2 . . 2 . 9 5 . 4 Recycling Units 46 | . 6 . 1 . . . . . 29 2 3 . . . . . . . . 3 . . 2 . . . . . . Scanalyzers 10 | . . . . . . . . . . . . . . . 1 . . . . . . . 3 . . 1 5 . . Garrison Access 15 | . . . . . . . . . . . . . . 1 1 . . . . 3 . . 2 . 3 3 2 . . Terminal Hacks 226 | . 7 2 1 . 1 . 3 16 2 3 16 . . 12 19 . . 17 . 17 10 8 3 17 8 18 31 7 8 Record 12 | . . . . . . . . . . . . . . . . . . 5 . . . 7 . . . . . . . Part Schematic 12 | . 2 . . . . . . . . . 1 . . . 2 . . 4 . 1 1 . . . . 1 . . . Robot Schematic 1 | . . . . . . . . . . . . . . 1 . . . . . . . . . . . . . . . Robot Analysis 16 | . 2 1 1 . . . . 3 . . . . . . 1 . . 4 . 2 . . . 1 . . 1 . . Prototype ID Bank 20 | . 2 . . . . . 1 . . . 1 . . 2 2 . . 4 . . 1 . . . 1 1 2 . 3 Open Door 21 | . . 1 . . . . . 8 . 1 4 . . . . . . . . . . . . . . . 4 3 . Level Access Points 3 | . . . . . . . . . . . . . . . 1 . . . . . . . . . . . 1 . 1 Branch Access Points 7 | . . . . . . . 1 . . 1 . . . . 1 . . . . 1 . . 1 . 1 . . 1 . Emergency Access Points 4 | . . . . . . . . . . . . . . 1 1 . . . . . . . . 1 1 . . . . Machine Index 3 | . . . . . . . . . . . . . . . . . . . . 1 . . . 1 . 1 . . . Terminal Index 12 | . 1 . . . . . . . . 1 1 . . 1 1 . . . . 1 1 . 1 1 1 . 1 . 1 Scanalyzer Index 1 | . . . . . . . . . . . . . . . . . . . . . . . . . . . 1 . . Garrison Index 1 | . . . . . . . . . . . . . . . 1 . . . . . . . . . . . . . . Alert Level 19 | . . . . . . . . 1 . . 2 . . 2 2 . . . . . 1 . . 3 1 2 4 . 1 Unreport Threat 30 | . . . . . . . . 1 . . 2 . . 2 2 . . . . 3 3 . . 3 3 4 4 3 . Locate Traps 10 | . . . . . . . . 1 . . 1 . . . 2 . . . . 2 . . 1 . . 2 . . 1 Disarm Traps 1 | . . . . . . . . . . . . . . . . . . . . . . . . . . . 1 . . Reprogram Traps 1 | . . . . . . . . . . . . . . . . . . . . 1 . . . . . . . . . Maintenance Status 2 | . . . . . . . . . . . . . . . . . . . . . . . . 1 . . 1 . . Security Status 1 | . . . . . . . . . . . . . . . . . . . . . . . . 1 . . . . . Surveillance Status 1 | . . . . . . . . . . . . . . . . . . . . . . . . 1 . . . . . Patrol Status 8 | . . . . . . . . . . . 1 . . . . . . . . 1 . . . 1 . 1 3 . 1 Transport Status 2 | . . . . . . . . . . . . . . 1 . . . . . . . . . . . . 1 . . Investigation Status 1 | . . . . . . . . . . . 1 . . . . . . . . . . . . . . . . . . Recall Investigation 1 | . . . . . . . . . . . . . . . 1 . . . . . . . . . . . . . . Recall Extermination 1 | . . . . . . . . . . . . . . . . . . . . . . . . . . 1 . . . Recall Reinforcements 2 | . . . . . . . . . . . . . . . . . . . . . . . . 1 . . 1 . . Recall Assault 1 | . . . . . . . . . . . . . . . . . . . . . 1 . . . . . . . . Hauler Manifests 6 | . . . . . . . . 1 . . . . . 1 1 . . . . 1 . . . . . 1 1 . . Registered Components 2 | . . . . . . . . . . . . . . . . . . . . . 1 . . . . . 1 . . Registered Prototypes 2 | . . . . . . . . . . . . . . . . . . . . 1 . . . . . 1 . . . Zone Layout 18 | . . . . . . . 1 1 . . 2 . . 1 1 . . . . 2 1 . . 2 . 3 4 . . Derelict Proto ID Bank 1 | . . . . . 1 . . . . . . . . . . . . . . . . . . . . . . . . Release Object 3 | . . . . . . . . . 2 . . . . . . . . . . . . 1 . . . . . . . Fabricator Hacks 12 | . . . . . . . . . . . . . . . 3 . . . . 3 3 . 1 . . 1 . 1 . Network Status 5 | . . . . . . . . . . . . . . . 1 . . . . 1 1 . . . . 1 . 1 . Load Schematic 4 | . . . . . . . . . . . . . . . 1 . . . . 1 1 . 1 . . . . . . Build 3 | . . . . . . . . . . . . . . . 1 . . . . 1 1 . . . . . . . . Repair Station Hacks 19 | . . . 2 . . . 4 2 . . . . . . . . . . . . 2 . . 2 . 4 3 . . Scan Component 10 | . . . 1 . . . 2 1 . . . . . . . . . . . . 1 . . 1 . 2 2 . . Repair 9 | . . . 1 . . . 2 1 . . . . . . . . . . . . 1 . . 1 . 2 1 . . Recycling Unit Hacks 14 | . 1 . 1 . . . . . 7 2 2 . . . . . . . . 1 . . . . . . . . . Retrieve Matter 2 | . . . . . . . . . . 1 1 . . . . . . . . . . . . . . . . . . Retrieve Components 12 | . 1 . 1 . . . . . 7 1 1 . . . . . . . . 1 . . . . . . . . . Scanalyzer 6 | . . . . . . . . . . . . . . . 1 . . . . . . . 2 . . 1 2 . . Insert Component 6 | . . . . . . . . . . . . . . . 1 . . . . . . . 2 . . 1 2 . . Garrison Access Hacks 8 | . . . . . . . . . . . . . . 1 1 . . . . 2 . . 1 . 1 1 1 . . Seal Access 8 | . . . . . . . . . . . . . . 1 1 . . . . 2 . . 1 . 1 1 1 . . Unauthorized Hacks 91 | . 8 . 6 . . . 3 8 6 5 6 . . . 11 . . . . 10 3 . . 6 3 3 8 3 2 Terminals 69 | . 7 . 6 . . . 3 8 . 5 6 . . . 9 . . . . 7 . . . 6 3 2 7 . . Track 4 | . . . . . . . . . . . . . . . 1 . . . . . . . . 2 . . 1 . . Assimilate 5 | . . . . . . . . . . . . . . . 2 . . . . 2 . . . . . . 1 . . Botnet 17 | . 1 . 2 . . . 1 1 . 2 1 . . . 2 . . . . 2 . . . 1 1 1 2 . . Operators 12 | . 1 . . . . . . 2 . 1 1 . . . 1 . . . . 1 . . . 1 1 1 2 . . Skim 31 | . 5 . 4 . . . 2 5 . 2 4 . . . 3 . . . . 2 . . . 2 1 . 1 . . Fabricators 11 | . . . . . . . . . . . . . . . 2 . . . . 3 3 . . . . . . 3 . Report 4 | . . . . . . . . . . . . . . . 1 . . . . 1 1 . . . . . . 1 . Prioritize 1 | . . . . . . . . . . . . . . . . . . . . . 1 . . . . . . . . Liberate 3 | . . . . . . . . . . . . . . . . . . . . 1 1 . . . . . . 1 . Haulers 3 | . . . . . . . . . . . . . . . 1 . . . . 1 . . . . . . . 1 . Repair Stations 3 | . . . . . . . . . . . . . . . . . . . . . . . . . . 1 . . 2 Mechanics 2 | . . . . . . . . . . . . . . . . . . . . . . . . . . 1 . . 1 Patch 1 | . . . . . . . . . . . . . . . . . . . . . . . . . . . . . 1 Recycling Units 7 | . 1 . . . . . . . 6 . . . . . . . . . . . . . . . . . . . . Tunnel 7 | . 1 . . . . . . . 6 . . . . . . . . . . . . . . . . . . . . Scanalyzers 1 | . . . . . . . . . . . . . . . . . . . . . . . . . . . 1 . . Researchers 1 | . . . . . . . . . . . . . . . . . . . . . . . . . . . 1 . . Garrison Access . | . . . . . . . . . . . . . . . . . . . . . . . . . . . . . . Data Cores Recovered 6 | . 1 . . . . . 1 1 . . . . . . 1 . . . . . . . . . 1 . . . 1 Used 1 | . . . . . . . . . . . . . . . 1 . . . . . . . . . . . . . . Hacking Detections 128 | . 9 1 6 . . 1 5 16 6 5 8 . . 7 8 . . . . 8 2 . 3 9 3 10 12 3 6 Full Trace Events 12 | . 1 1 2 . . . . 2 2 . . . . . 1 . . . . 1 . . 1 . . . . . 1 Feedback Events . | . . . . . . . . . . . . . . . . . . . . . . . . . . . . . . Feedback Blocked . | . . . . . . . . . . . . . . . . . . . . . . . . . . . . . . Robot Schematics Acquired 2 | . . . . . . . . . . . . . . 1 . . . . . . . . . . . . 1 . . Robots Built 1 | . . . . . . . . . . . . . . . . . . . . . 1 . . . . . . . . Authchips . | . . . . . . . . . . . . . . . . . . . . . . . . . . . . . . Time 93 | . . . . . . . . . . . . . . . . . . . . . 93 . . . . . . . . Total Robot Build Rating 7 | . . . . . . . . . . . . . . . . . . . . . 7 . . . . . . . . Part Schematics Acquired 16 | . 2 . . . . . . . . . 1 . . . 2 . . 4 . 1 1 . . . . 1 4 . . Parts Built 4 | . . . . . . . . . . . . . . . 2 . . . . 2 . . . . . . . . . Authchips . | . . . . . . . . . . . . . . . . . . . . . . . . . . . . . . Time 100 | . . . . . . . . . . . . . . . 31 . . . . 69 . . . . . . . . . Total Part Build Rating 28 | . . . . . . . . . . . . . . . 10 . . . . 18 . . . . . . . . . Parts Repaired 9 | . . . 1 . . . 2 1 . . . . . . . . . . . . 1 . . 1 . 2 1 . . Time 474 | . . . 38 . . . 159 60 . . . . . . . . . . . . 44 . . 20 . 99 54 . . Parts Recycled . | . . . . . . . . . . . . . . . . . . . . . . . . . . . . . . Recycled Matter . | . . . . . . . . . . . . . . . . . . . . . . . . . . . . . . Retrieved Matter . | . . . . . . . . . . . . . . . . . . . . . . . . . . . . . . Retrieved Components 22 | . 2 . . . . . . . 10 2 6 . . . . . . . . 2 . . . . . . . . . Parts Scanalyzed . | . . . . . . . . . . . . . . . . . . . . . . . . . . . . . . Part Schematics Acquired . | . . . . . . . . . . . . . . . . . . . . . . . . . . . . . . Parts Damaged . | . . . . . . . . . . . . . . . . . . . . . . . . . . . . . . Bothacking | -11 -10 -10 -9 -9 -9 -8 -8 -8 -8 -6 -6 -6 -6 -6 -5 -5 -5 -5 -4 -4 -4 -4 -3 -3 -2 -2 -2 -1 -1 ------------ Run | Yrd Mat Min Mat Min Exi Min Mat Sto Rec Fac Ext Cet Arc Hub Fac Upp Upp Zhi Pro Fac Arm Lab Res Qua Res Tes Sec Acc Com Used RIF Installer . | . . . . . . . . . . . . . . . . . . . . . . . . . . . . . . Robots Hacked . | . . . . . . . . . . . . . . . . . . . . . . . . . . . . . . Non-combat . | . . . . . . . . . . . . . . . . . . . . . . . . . . . . . . Combat . | . . . . . . . . . . . . . . . . . . . . . . . . . . . . . . Robot Hacks Applied . | . . . . . . . . . . . . . . . . . . . . . . . . . . . . . . Relay Couplers Released 1 | . . . . . . . . . . . . . . 1 . . . . . . . . . . . . . . . Machine Destruction 1 | . . . . . . . . . . . . . . 1 . . . . . . . . . . . . . . . Fabnet Peak Effective % . | . . . . . . . . . . . . . . . . . . . . . . . . . . . . . . Robots Rewired 24 | . . . . . . . . . 9 . 8 . . . . . . . . . 7 . . . . . . . . Allies Hacked 1 | . . . . . . . . . . . . . . . . . . . . . 1 . . . . . . . . Hacks Repelled . | . . . . . . . . . . . . . . . . . . . . . . . . . . . . . . Allies | -11 -10 -10 -9 -9 -9 -8 -8 -8 -8 -6 -6 -6 -6 -6 -5 -5 -5 -5 -4 -4 -4 -4 -3 -3 -2 -2 -2 -1 -1 -------- Run | Yrd Mat Min Mat Min Exi Min Mat Sto Rec Fac Ext Cet Arc Hub Fac Upp Upp Zhi Pro Fac Arm Lab Res Qua Res Tes Sec Acc Com Total Allies 58 | . . . . 3 . . . 12 9 . 17 5 . . . . . . . 3 8 . . . . . 1 . . Largest Group 18 | . . . . 3 3 3 1 10 13 13 15 18 14 6 . . . . . 2 7 . . . . . 1 . . Highest-Rated Group 977 | . . . . 40 40 40 8 173 166 166 559 977 723 237 . . . . . 112 428 . . . . . 26 . . Highest-Rated Ally 159 | . . . . 16 16 16 8 31 16 16 159 159 96 96 . . . . . 56 93 . . . . . 26 . . Total Orders 34 | . . . . 1 . . . 4 7 . 2 9 . 5 . . . . 2 . 4 . . . . . . . . STAY 14 | . . . . 1 . . . 1 3 . 1 4 . 2 . . . . . . 2 . . . . . . . . FOLLOW 12 | . . . . . . . . 1 3 . 1 5 . . . . . . . . 2 . . . . . . . . PICKUP 1 | . . . . . . . . . 1 . . . . . . . . . . . . . . . . . . . . EXPLORE 6 | . . . . . . . . 2 . . . . . 3 . . . . 1 . . . . . . . . . . RETURN 1 | . . . . . . . . . . . . . . . . . . . 1 . . . . . . . . . . Ally Attacks 488 | . . . . . . 40 1 55 40 55 71 122 49 20 . . . . . 16 19 . . . . . . . . Total Damage 8860 | . . . . . . 336 . 699 337 723 1328 2600 1118 333 . . . . . 462 924 . . . . . . . . Kills 63 | . . . . . . 3 . 9 6 4 8 15 8 3 . . . . . 2 5 . . . . . . . . Allies Corrupted 3 | . . . . . . . . . . . . . . 1 . . . . . . 2 . . . . . . . . Allies Melted . | . . . . . . . . . . . . . . . . . . . . . . . . . . . . . . Intel | -11 -10 -10 -9 -9 -9 -8 -8 -8 -8 -6 -6 -6 -6 -6 -5 -5 -5 -5 -4 -4 -4 -4 -3 -3 -2 -2 -2 -1 -1 ------- Run | Yrd Mat Min Mat Min Exi Min Mat Sto Rec Fac Ext Cet Arc Hub Fac Upp Upp Zhi Pro Fac Arm Lab Res Qua Res Tes Sec Acc Com Robot Analysis Total 16 | . 2 1 1 . . . . 3 . . . . . . 1 . . 4 . 2 . . . 1 . . 1 . . Derelict Logs Recovered 5 | . . . . 2 . . . . . . . . . . . 2 . . 1 . . . . . . . . . . Drone Launches 7 | . . . . . . . . 2 . . . . . 3 . . . . 2 . . . . . . . . . . Drone Recoveries 3 | . . . . . . . . . . . . . . 1 . . . . 2 . . . . . . . . . . Exploration | -11 -10 -10 -9 -9 -9 -8 -8 -8 -8 -6 -6 -6 -6 -6 -5 -5 -5 -5 -4 -4 -4 -4 -3 -3 -2 -2 -2 -1 -1 ------------- Run | Yrd Mat Min Mat Min Exi Min Mat Sto Rec Fac Ext Cet Arc Hub Fac Upp Upp Zhi Pro Fac Arm Lab Res Qua Res Tes Sec Acc Com Turns Passed 42562 | 335 707 1392 2160 1249 1334 966 1191 3787 2239 901 2216 897 272 1749 920 1105 666 370 570 1366 909 1016 1697 2176 981 2184 3952 1466 1789 Spaces Moved 16546 | 140 304 597 766 746 470 383 360 1040 639 456 952 313 66 666 653 559 378 240 369 677 301 316 603 522 293 881 1639 602 615 Core 8 | 3 . . . . . . . . . . . . . . . . . . . . . . . 5 . . . . . Treads 15194 | 137 304 597 766 746 470 383 360 1040 639 456 870 313 66 496 . 363 378 240 369 677 301 316 603 517 293 638 1639 602 615 Legs 964 | . . . . . . . . . . . 82 . . 170 469 . . . . . . . . . . 243 . . . Wheels . | . . . . . . . . . . . . . . . . . . . . . . . . . . . . . . Hover . | . . . . . . . . . . . . . . . . . . . . . . . . . . . . . . Flight 380 | . . . . . . . . . . . . . . . 184 196 . . . . . . . . . . . . . Fastest Speed 50 | 50 160 160 160 160 160 240 160 160 100 139 145 186 266 107 94 140 133 133 133 133 133 232 146 195 169 169 169 131 131 Average Speed 185 | 157 160 208 207 160 244 240 235 233 198 158 168 232 266 177 117 145 137 133 133 133 165 232 233 335 256 169 169 137 133 Slowest Speed 3350 | 160 240 240 240 160 640 240 320 250 389 389 227 266 266 398 157 157 140 133 133 133 232 232 319 3350 268 169 169 230 230 Overloaded Moves . | . . . . . . . . . . . . . . . . . . . . . . . . . . . . . . Propulsion Burnouts . | . . . . . . . . . . . . . . . . . . . . . . . . . . . . . . Robots Hopped 1 | . . . . . . . . . . . . . . . 1 . . . . . . . . . . . . . . Cave-ins Triggered 3 | . . . . . . . . 1 . . . . . . . . . . . . . . . . . . . 2 . Teleports 7 | . . . . . . . . . . . . . . . . . . . . . 1 . . . . . 3 3 . Exploration Rate (%) 57 | 6 64 95 70 95 73 73 34 85 70 14 85 75 67 91 20 64 54 61 59 20 20 99 23 73 13 76 84 26 22 Regions Visited 29 Branch Regions 20 Pre-discovered Areas 13 | . 1 1 . 1 . . . . 6 . . . . . . . . 3 1 . . . . . . . . . . Known Exits Taken 17 | . 1 1 . . . . 1 1 1 1 . . . 1 1 1 . . 1 1 . 1 1 . 1 1 1 1 . Unknown Exits Taken 12 | 1 . . 1 1 1 1 . . . . 1 1 1 . . . 1 1 . . 1 . . 1 . . . . . Scrap Searched 9 | . . 1 . 1 . 1 . . . . . . . . . 2 2 . 2 . . . . . . . . . . Spaces Dug 253 | . 13 . . . . . 6 12 . 7 2 . 7 7 11 6 1 1 1 13 1 . 13 23 7 18 24 59 21 Terrain Destroyed 847 | . 44 25 8 . . 10 11 12 1 12 14 1 9 37 70 14 7 1 6 25 12 . 51 79 64 42 62 127 103 Melee 14 | . . . . . . . . 9 . . 1 . . . 4 . . . . . . . . . . . . . . Projectile 655 | . 3 . 8 . . 10 11 3 1 12 13 1 9 37 14 14 7 1 6 25 12 . 51 79 51 42 62 104 79 AOE 131 | . 41 25 . . . . . . . . . . . . 52 . . . . . . . . . 13 . . . . Terrain Rammed . | . . . . . . . . . . . . . . . . . . . . . . . . . . . . . . Walls Destroyed . | . . . . . . . . . . . . . . . . . . . . . . . . . . . . . . Machines Disabled . | . . . . . . . . . . . . . . . . . . . . . . . . . . . . . . Actions | -11 -10 -10 -9 -9 -9 -8 -8 -8 -8 -6 -6 -6 -6 -6 -5 -5 -5 -5 -4 -4 -4 -4 -3 -3 -2 -2 -2 -1 -1 --------- Run | Yrd Mat Min Mat Min Exi Min Mat Sto Rec Fac Ext Cet Arc Hub Fac Upp Upp Zhi Pro Fac Arm Lab Res Qua Res Tes Sec Acc Com Total 26756 | 196 452 703 1143 797 660 426 659 2175 1587 626 1514 476 141 1156 786 820 516 289 438 1068 674 592 835 875 495 1528 2688 1099 1342 Wait 7086 | 14 99 60 217 39 166 31 234 953 754 105 421 117 46 320 70 216 127 38 56 255 262 228 122 224 129 400 626 264 493 Move 16514 | 139 303 596 765 745 469 382 359 1039 638 455 951 312 65 665 650 558 377 239 368 676 300 315 602 521 292 880 1639 600 614 Hop 1 | . . . . . . . . . . . . . . . 1 . . . . . . . . . . . . . . Pick Up 263 | 7 3 14 16 3 10 3 4 10 46 9 14 10 . 16 10 3 . 3 . 9 3 7 7 7 6 11 24 4 4 Fast Attach 135 | 5 2 1 9 . . . 5 10 3 3 9 2 . 7 7 1 . 2 . 6 . 4 5 6 1 18 22 3 4 Attach 126 | 2 1 1 7 . 3 1 3 6 3 5 5 1 . 9 2 . . . . 3 2 3 5 3 4 4 18 18 17 Detach 52 | . . . 2 . . . . 2 2 1 2 . . 4 4 1 . . . 1 . 3 2 . 3 6 6 10 3 Swap 202 | . 9 6 8 2 4 . 11 18 2 3 11 3 1 11 3 6 3 . 1 6 8 3 2 6 3 22 36 6 8 Drop 305 | 1 1 4 20 3 8 3 14 23 23 24 17 15 . 19 14 1 . 4 . 12 2 12 9 11 5 23 26 4 7 Fire 1872 | 28 34 21 99 4 . 6 29 100 31 21 61 16 29 104 18 34 7 3 13 99 49 17 81 96 51 164 284 188 185 Melee 17 | . . . . . . . . 9 . . 1 . . . 7 . . . . . . . . . . . . . . Ram . | . . . . . . . . . . . . . . . . . . . . . . . . . . . . . . Kick . | . . . . . . . . . . . . . . . . . . . . . . . . . . . . . . Crush 15 | . . . . 1 . . . 1 . . . . . 1 . . . . . 1 . . . 1 1 . 7 1 1 Escape Stasis 11 | . . . . . . . . 4 . . . . . . . . . . . . . . . . . . . 1 6 Rewire 155 | . . . . . . . . . 85 . 22 . . . . . . . . . 48 . . . . . . . . Trap 2 | . . . . . . . . . . . . . . . . . 2 . . . . . . . . . . . . Miscellaneous . | . . . . . . . . . . . . . . . . . . . . . . . . . . . . . . Route ------- -11/Scrapyard -10/Materials (discovered 6 exits: *Mat x3 / *Min x2 / Sub) -10/Mines (discovered 2 exits: *Mat x2) -9/Materials (discovered 3 exits: *Mat x2 / [*Min]) -9/Mines (discovered 2 exits: *Mat / *Exi) -9/Exiles -8/Mines (discovered 2 exits: *Mat x2) -8/Materials (discovered 2 exits: *Fac / *Sto) -8/Storage (discovered 2 exits: *Fac / *Rec) -8/Recycling -6/Factory (discovered 4 exits: Low x2 / *Ext x2) -6/Extension (discovered 2 exits: *Fac / *Cet) -6/Cetus (discovered 2 exits: *Fac / [*Arc]) -6/Archives (discovered 2 exits: *Hub x2) -6/Hub_04(d) (discovered 3 exits: *Fac x3) -5/Factory (discovered 6 exits: Fac x4 / *Upp x2) -5/Upper Caves -5/Upper Caves -5/Zhirov -4/Proximity Caves -4/Factory (discovered 5 exits: *Res x2 / *Upp x2 / *Arm) -4/Armory (discovered 2 exits: *Res / *Lab) -4/Lab -3/Research (discovered 2 exits: *Qua x2) -3/Quarantine -2/Research (discovered 2 exits: *Tes x2) -2/Testing (discovered 2 exits: *Acc / *Sec) -2/Section 7 -1/Access -1/Command (discovered 2 exits: *Sur x2) To Epsilon Eridani History --------- Turn | Location | Event 2 | -11/Scrapyard | Discovered new exit (range 16) 336 | -11/Scrapyard | Entered Materials 337 | -10/Materials | Build established: Mutant 490 | -10/Materials | Discovered new exit (range 16) 683 | -10/Materials | Identified exit to Subcaves 748 | -10/Materials | Learned 4 Recycling zone layouts 756 | -10/Materials | Discovered new exit (range 12) 804 | -10/Materials | Identified exit to Materials 804 | -10/Materials | Identified exit to Mines 851 | -10/Materials | Learned location of 2 exits from Subcaves 888 | -10/Materials | Learned 2 Storage zone layouts 913 | -10/Materials | Learned 4 Recycling zone layouts 930 | -10/Materials | Learned 2 Storage zone layouts 958 | -10/Materials | Learned 4 Recycling zone layouts 1043 | -10/Materials | Entered Mines 1069 | -10/Mines | Discovered exit to Materials (range 8) 1190 | -10/Mines | Found DCF Scrap (13 items) 1290 | -10/Mines | Core integrity fell below 50% 1435 | -10/Mines | Discovered exit to Materials (range 5) 1612 | -10/Mines | Found a hidden stash of uninstalled traps 1712 | -10/Mines | Learned location of Storage (-8) 2224 | -10/Mines | Met a Derelict shopkeep closing up shop 2435 | -10/Mines | Entered Materials 2435 | -9/Materials | Evolved 2 slots: Utility x1, Weapon x1 2723 | -9/Materials | Build established: Tank 2791 | -9/Materials | Lost 3 parts (1n2w) 2966 | -9/Materials | Discovered new exit (range 15) 3325 | -9/Materials | Discovered new exit (range 7) 3603 | -9/Materials | Build established: Scavenger-Gunner 4095 | -9/Materials | Build established: Tank 4230 | -9/Materials | Discovered new exit (range 15) 4506 | -9/Materials | Repaired Hvy. Particle Cannon 4595 | -9/Materials | Entered Mines 4609 | -9/Mines | Met a Derelict bent on vengeance 4640 | -9/Mines | Discovered new exit (range 12) 4657 | -9/Mines | Assisted by bots powering up and referring to "LRC-V3" 5011 | -9/Mines | A weapon hastily lodged in a ceiling crevice suddenly fell to the ground 5122 | -9/Mines | Deemed a non-threat by the Exiles lab entrance 5122 | -9/Mines | Discovered new exit (range 5) 5229 | -9/Mines | Found a damaged Exp. Sensor Array with a note attached 5233 | -9/Mines | Found Prototype Device 5338 | -9/Mines | Learned Materials interactive machine intel 5520 | -9/Mines | Learned location of Zion (-7) 5844 | -9/Mines | Entered Exiles 5844 | -9/Exiles | Accompanied by 3 allies 5884 | -9/Exiles | Met 8R-AWN 5907 | -9/Exiles | Met EX-HEX 6315 | -9/Exiles | Met EX-DEC 6651 | -9/Exiles | Met EX-BIN 6680 | -9/Exiles | Aligned with FarCom system 6682 | -9/Exiles | Given EX-Vault access code 6747 | -9/Exiles | Opened EX-Vault 6757 | -9/Exiles | Found Superbattery 6781 | -9/Exiles | Found AWS/Gauss 6801 | -9/Exiles | Found YOLO Cannon 6936 | -9/Exiles | Warned to stay clear of 0b10 Research branches 6995 | -9/Exiles | Exiles lab attacked by MAIN.C 7022 | -9/Exiles | Identified Exp. Sensor Array 7149 | -9/Exiles | Discovered new exit (range 14) 7178 | -9/Exiles | Stole three prototypes: Superbattery, YOLO Cannon, AWS/Gauss 7178 | -9/Exiles | Entered Mines 7178 | -8/Mines | Accompanied by 3 allies 7219 | -8/Mines | Discovered new exit (range 7) 8107 | -8/Mines | Discovered new exit (range 8) 8144 | -8/Mines | Entered Materials 8144 | -8/Materials | Accompanied by 1 ally 8144 | -8/Materials | Evolved 2 slots: Propulsion x1, Utility x1 8145 | -8/Materials | Identified exit to Storage 8146 | -8/Materials | Loaded intel: 17 interactive machine locations 8516 | -8/Materials | Build established: Scavenger-Tank 8627 | -8/Materials | Discovered new exit (range 4) 9042 | -8/Materials | Repaired Cld. Ion Engine 9152 | -8/Materials | Repaired Exp. Sensor Array 9158 | -8/Materials | Build established: Scavenger-Skirmisher 9335 | -8/Materials | Entered Storage 9336 | -8/Storage | Identified exit to Recycling 9337 | -8/Storage | Identified exit to Factory 9531 | -8/Storage | Met a pair of Derelict thieves 9658 | -8/Storage | Crushed by falling debris 9680 | -8/Storage | Lost 4 allies 10656 | -8/Storage | Lost 3 parts (2n1u) 11240 | -8/Storage | Build established: Tank 11946 | -8/Storage | Found Prototype Protection 11946 | -8/Storage | Identified Lgt. Regenerative Plating 12252 | -8/Storage | Build established: Skirmisher 12405 | -8/Storage | Assisted by bots powering up and referring to "LRC-V3" 12470 | -8/Storage | Learned 2 Lower Caves zone layouts 12525 | -8/Storage | Learned location of 1 exit from Extension 12635 | -8/Storage | Learned location of 1 exit from Lower Caves 12681 | -8/Storage | Learned Factory stockpile data 12721 | -8/Storage | Build established: Commander-Skirmisher 12935 | -8/Storage | First assault squad dispatched 12975 | -8/Storage | Repaired Adv. Beam Rifle 13072 | -8/Storage | Used back door to open Recycling access 13122 | -8/Storage | Entered Recycling 13122 | -8/Recycling | Accompanied by 6 allies 13123 | -8/Recycling | Identified exit to Scraptown 13123 | -8/Recycling | Identified exit to Factory 13366 | -8/Recycling | Scanned before Scraplab entrance 13407 | -8/Recycling | Angered Scraplab inhabitants 13472 | -8/Recycling | Found Prototype Device 13472 | -8/Recycling | Identified Scrap Engine 14010 | -8/Recycling | Build established: Commander-Construct 15361 | -8/Recycling | Entered Factory 15361 | -6/Factory | Accompanied by 13 allies 15361 | -6/Factory | Evolved 4 slots: Propulsion x1, Utility x3 15362 | -6/Factory | Identified exit to Extension 15363 | -6/Factory | FarCom data flow suspended 15631 | -6/Factory | Identified exit to Lower Caves 15711 | -6/Factory | Search patrols dispatched 15886 | -6/Factory | Lost 3 allies 15945 | -6/Factory | Lost 3 allies 16047 | -6/Factory | Lost 4 allies 16262 | -6/Factory | Entered Extension 16263 | -6/Extension | Identified exit to Factory 16267 | -6/Extension | Build established: Hacker-Construct 17116 | -6/Extension | Rescued a captive Derelict 17263 | -6/Extension | Rescued a captive Derelict 17269 | -6/Extension | Rescued a captive Derelict 17637 | -6/Extension | Spotted B-75 Beast 17645 | -6/Extension | Destroyed B-75 Beast 17653 | -6/Extension | Spotted B-75 Beast 17662 | -6/Extension | Destroyed B-75 Beast 17671 | -6/Extension | Build established: Commander-Construct 17714 | -6/Extension | Rescued A7 17971 | -6/Extension | Rescued a captive Derelict 17972 | -6/Extension | Rescued a captive Derelict 18104 | -6/Extension | Rescued a captive Derelict 18149 | -6/Extension | Rescued a captive Derelict 18150 | -6/Extension | Rescued a captive Derelict 18390 | -6/Extension | Discovered new exit (range 6) 18478 | -6/Extension | Entered Cetus 18478 | -6/Cetus | Accompanied by 15 allies (A7) 18483 | -6/Cetus | Acquired a Cetus Manufacturing Module code from A7 18507 | -6/Cetus | Spotted Cetus Guard 18507 | -6/Cetus | Spotted Cetus Guard 18510 | -6/Cetus | Spotted Cetus Guard 18512 | -6/Cetus | Spotted Cetus Guard 18524 | -6/Cetus | Allies destroyed Cetus Guard 18526 | -6/Cetus | Allies destroyed Cetus Guard 18534 | -6/Cetus | Allies destroyed Cetus Guard 18537 | -6/Cetus | Allies destroyed Cetus Guard 18763 | -6/Cetus | Escorted A7 to Cetus Mainframe 18852 | -6/Cetus | Started Cetus Manufacturing Module 18877 | -6/Cetus | Manufactured an Enhanced Grunt 18902 | -6/Cetus | Manufactured an Enhanced Grunt 18927 | -6/Cetus | Manufactured an Enhanced Grunt 18948 | -6/Cetus | Discovered new exit (range 16) 18952 | -6/Cetus | Manufactured an Enhanced Grunt 18977 | -6/Cetus | Manufactured an Enhanced Grunt 19153 | -6/Cetus | Spotted Cetus Guard 19153 | -6/Cetus | Spotted Cetus Guard 19156 | -6/Cetus | Spotted Cetus Guard 19159 | -6/Cetus | Spotted Cetus Guard 19160 | -6/Cetus | Allies destroyed Cetus Guard 19168 | -6/Cetus | Allies destroyed Cetus Guard 19191 | -6/Cetus | Allies destroyed Cetus Guard 19200 | -6/Cetus | Lost 3 allies 19206 | -6/Cetus | Extracted ID and sensor layout for unrecognized location from A7's data core 19225 | -6/Cetus | Found Prototype Protection 19228 | -6/Cetus | Security sweep announced 19242 | -6/Cetus | Discovered exit to Factory (range 15) 19256 | -6/Cetus | Met Revision 17 19375 | -6/Cetus | Entered Archives 19375 | -6/Archives | Accompanied by 14 allies 19577 | -6/Archives | Met Zhirov 19583 | -6/Archives | Reinforcements dispatched to Archives 19583 | -6/Archives | Discovered new exit (range 13) 19615 | -6/Archives | Discovered new exit (range 13) 19628 | -6/Archives | Reinforcements dispatched to Archives 19647 | -6/Archives | Entered Hub_04(d) 19647 | -6/Hub_04(d) | Accompanied by 6 allies 19720 | -6/Hub_04(d) | Identified Med. Regenerative Plating 19879 | -6/Hub_04(d) | Discovered exit to Factory (range 57) 19950 | -6/Hub_04(d) | Build established: Construct 20068 | -6/Hub_04(d) | Lost 3 allies 20086 | -6/Hub_04(d) | Network Hub disabled 20282 | -6/Hub_04(d) | Network Hub disabled 20390 | -6/Hub_04(d) | Spotted Lightning 20393 | -6/Hub_04(d) | Spotted Lightning 20394 | -6/Hub_04(d) | Spotted Lightning 20399 | -6/Hub_04(d) | Network Hub disabled 20403 | -6/Hub_04(d) | Destroyed Lightning 20420 | -6/Hub_04(d) | Destroyed Lightning 20424 | -6/Hub_04(d) | Destroyed Lightning 20436 | -6/Hub_04(d) | System corruption reached 10% 20475 | -6/Hub_04(d) | Destroyed 8 combat bots 20502 | -6/Hub_04(d) | Lost 3 parts (1p2n) 20513 | -6/Hub_04(d) | Found Prototype Device 20513 | -6/Hub_04(d) | Identified Exp. Phase Shifter 20539 | -6/Hub_04(d) | Found Prototype Device 20832 | -6/Hub_04(d) | Discovered exit to Factory (range 11) 20892 | -6/Hub_04(d) | Spotted Lightning 20895 | -6/Hub_04(d) | Identified Exp. EM Disruption Field 20897 | -6/Hub_04(d) | Spotted Lightning 20900 | -6/Hub_04(d) | Spotted Lightning 20903 | -6/Hub_04(d) | Destroyed Lightning 20932 | -6/Hub_04(d) | Destroyed Lightning 20965 | -6/Hub_04(d) | Found Prototype Processor 20965 | -6/Hub_04(d) | Identified Exp. Targeting Computer 20975 | -6/Hub_04(d) | Destroyed Lightning 21018 | -6/Hub_04(d) | Found Exp. EM Disruption Field 21242 | -6/Hub_04(d) | Discovered exit to Factory (range 5) 21317 | -6/Hub_04(d) | Network Hub disabled 21325 | -6/Hub_04(d) | Spotted Lightning 21351 | -6/Hub_04(d) | Destroyed Lightning 21378 | -6/Hub_04(d) | Found Exp. EM Disruption Field 21396 | -6/Hub_04(d) | Entered Factory 21396 | -5/Factory | Evolved 2 slots: Power x1, Weapon x1 21632 | -5/Factory | Identified exit to Factory 21902 | -5/Factory | Fabricated Imp. Cryofiber Web? 22040 | -5/Factory | Identified exit to Upper Caves 22159 | -5/Factory | Spotted B-75 Beast 22215 | -5/Factory | Build established: Hacker-Construct 22316 | -5/Factory | Entered Upper Caves 22318 | -5/Upper Caves | Attracted the attention of an 0b10 checkpoint 22456 | -5/Upper Caves | Learned location of 1 exit from Factory 22575 | -5/Upper Caves | Identified exit to Upper Caves 22719 | -5/Upper Caves | Build established: Construct 23421 | -5/Upper Caves | Entered another Upper Caves area 23500 | -5/Upper Caves | Attracted the attention of an 0b10 checkpoint 23782 | -5/Upper Caves | Found DCF Scrap (14 items) 24078 | -5/Upper Caves | Discovered new exit (range 7) 24087 | -5/Upper Caves | Entered Zhirov 24087 | -5/Zhirov | Discovered new exit (range 3) 24135 | -5/Zhirov | Learned location of Command (-1) 24177 | -5/Zhirov | Found Alien Artifact 24177 | -5/Zhirov | Identified Integrated Reactor 24177 | -5/Zhirov | Installed Integrated Reactor, increased core energy generation (+10) 24324 | -5/Zhirov | Found Alien Artifact 24444 | -5/Zhirov | Cloak Generator disabled 24454 | -5/Zhirov | Enhanced Grunts warped into view 24457 | -5/Zhirov | Entered Proximity Caves 24655 | -4/Proximity Caves | Learned location of Armory (-4) 24963 | -4/Proximity Caves | Discovered exit to Factory (range 4) 25027 | -4/Proximity Caves | Entered Factory 25027 | -4/Factory | Evolved 2 slots: Propulsion x1, Utility x1 25028 | -4/Factory | Identified exit to Research 25057 | -4/Factory | Identified exit to Upper Caves 25057 | -4/Factory | Identified exit to Armory 25107 | -4/Factory | Discovered exit to Research (range 15) 25355 | -4/Factory | Build established: Hacker-Construct 25399 | -4/Factory | Destroyed 8 combat bots 25404 | -4/Factory | Found Quantum Capacitor 25510 | -4/Factory | Spotted B-86 Titan 25513 | -4/Factory | Destroyed B-86 Titan 25615 | -4/Factory | Fabricated Enh. Nova Cannon (x2) 25777 | -4/Factory | First assault squad dispatched 26393 | -4/Factory | Entered Armory 26664 | -4/Armory | Repaired Exp. Heat Sink 26669 | -4/Armory | First assault squad dispatched 26777 | -4/Armory | Spotted B-86 Titan 26787 | -4/Armory | Destroyed B-86 Titan 26840 | -4/Armory | Destroyed 9 combat bots 26889 | -4/Armory | Fabricated A-27 Freighter (x1) 27155 | -4/Armory | Discovered exit to Research (range 3) 27175 | -4/Armory | Identified Transdimensional Reconstructor 27175 | -4/Armory | Warped through subspace to slip node 27175 | -4/Armory | Discovered new exit (range 1) 27302 | -4/Armory | Entered Lab 27302 | -4/Lab | Discovered exit to Research (range 9) 27328 | -4/Lab | Hidden lab's door opened automatically 27328 | -4/Lab | Sensor layout match revealed 27329 | -4/Lab | Gained access to the hidden lab's interior 27517 | -4/Lab | Found Transdimensional Reconstructor 27533 | -4/Lab | Found Integrated Reactor 27533 | -4/Lab | Installed Integrated Reactor, increased core energy generation (+10) 27552 | -4/Lab | Found Alien Artifact 27753 | -4/Lab | Found Prototype Energy Gun 27760 | -4/Lab | Found Prototype Energy Gun 27767 | -4/Lab | Found Prototype Protection 27794 | -4/Lab | Found Prototype Hackware 27839 | -4/Lab | Unable to decrypt terminal 28067 | -4/Lab | Detected by scanners 28076 | -4/Lab | Confronted by A5 28082 | -4/Lab | Destroyed A5 28102 | -4/Lab | Found Prototype Hackware 28102 | -4/Lab | Identified Exp. System Shield 28128 | -4/Lab | Build established: Construct 28213 | -4/Lab | Unable to decrypt terminal 28213 | -4/Lab | Identified Exp. Powered Armor 28215 | -4/Lab | Unable to decrypt terminal 28217 | -4/Lab | Unable to decrypt terminal 28219 | -4/Lab | Unable to decrypt terminal 28219 | -4/Lab | Found Alien Artifact 28219 | -4/Lab | Identified LC Capacitor 28318 | -4/Lab | Entered Research 28318 | -3/Research | Evolved 2 slots: Utility x2 28428 | -3/Research | Identified Deep Network Scanner 28430 | -3/Research | Identified exit to Quarantine 28518 | -3/Research | Revision forces began assault on 0b10 28551 | -3/Research | Met up with Revision 17++ 28808 | -3/Research | Spotted B-86 Titan 28816 | -3/Research | Destroyed B-86 Titan 28981 | -3/Research | Identified Hyp. EM Gauss Rifle (x2) 29018 | -3/Research | Research terminal network offline 29091 | -3/Research | Spotted Striker 29093 | -3/Research | Destroyed Striker 29119 | -3/Research | Destroyed 8 combat bots 29447 | -3/Research | Lost 3 allies 29848 | -3/Research | Spotted Striker 29850 | -3/Research | Spotted Striker 29858 | -3/Research | Destroyed Striker 29861 | -3/Research | Destroyed Striker 30006 | -3/Research | Intercept squad dispatched 30015 | -3/Research | Entered Quarantine 30544 | -3/Quarantine | Found Sigix Corpse 30900 | -3/Quarantine | Repaired Adv. Cryofiber Web 31003 | -3/Quarantine | Found Alien Artifact 31342 | -3/Quarantine | Found Transdimensional Reconstructor 31378 | -3/Quarantine | Intercept squad dispatched 31383 | -3/Quarantine | Spotted Tracker 31384 | -3/Quarantine | Spotted Tracker 31396 | -3/Quarantine | Spotted Combat Programmer 31402 | -3/Quarantine | Spotted Combat Programmer 31416 | -3/Quarantine | Destroyed Combat Programmer 31421 | -3/Quarantine | Destroyed Combat Programmer 31423 | -3/Quarantine | Destroyed Tracker 31426 | -3/Quarantine | Destroyed Tracker 31461 | -3/Quarantine | Found Transdimensional Reconstructor 31465 | -3/Quarantine | Found Alien Artifact 31540 | -3/Quarantine | System corruption reached 10% 31646 | -3/Quarantine | Found Prototype Protection 31646 | -3/Quarantine | Identified Centrium Heavy Armor Plating 31899 | -3/Quarantine | Found Alien Artifact 32009 | -3/Quarantine | Cryocooling Duct disabled 32024 | -3/Quarantine | Ambient heat levels rising (+20) 32024 | -3/Quarantine | Non-combat units ordered to evacuate 32158 | -3/Quarantine | Discovered new exit (range 11) 32191 | -3/Quarantine | Entered Research 32191 | -2/Research | Evolved 2 slots: Utility x2 32327 | -2/Research | Identified exit to Testing 32485 | -2/Research | Spotted B-90 Cyclops 32531 | -2/Research | Destroyed B-90 Cyclops 32565 | -2/Research | Found Quantum Capacitor 32616 | -2/Research | Identified Phase Armor 32854 | -2/Research | Spotted B-90 Cyclops 32886 | -2/Research | Destroyed B-90 Cyclops 33172 | -2/Research | Entered Testing 33436 | -2/Testing | Spotted Striker 33438 | -2/Testing | Spotted Striker 33662 | -2/Testing | Discovered new exit (range 15) 33672 | -2/Testing | First assault squad dispatched 33752 | -2/Testing | Found Prototype Processor 33752 | -2/Testing | Identified Exp. Target Analyzer 33776 | -2/Testing | Found Prototype Device 33776 | -2/Testing | Identified Thermal Barrier 33779 | -2/Testing | Found Thermal Barrier 33853 | -2/Testing | Intercept squad dispatched 33857 | -2/Testing | Spotted Tracker 33858 | -2/Testing | Spotted Tracker 33869 | -2/Testing | Destroyed Tracker 33870 | -2/Testing | Destroyed Tracker 33871 | -2/Testing | Spotted Combat Programmer 33885 | -2/Testing | Spotted Combat Programmer 33886 | -2/Testing | Destroyed Combat Programmer 33921 | -2/Testing | Destroyed Combat Programmer 33953 | -2/Testing | Found Prototype Launcher 34109 | -2/Testing | Found Prototype Energy Cannon 34148 | -2/Testing | Found Prototype Hackware 34148 | -2/Testing | Identified Exp. Hacking Suite 34370 | -2/Testing | Repaired Broken Exp. Heat Sink 34438 | -2/Testing | Build established: Hacker-Construct 34549 | -2/Testing | Identified Disintegrator 34568 | -2/Testing | Intercept squad dispatched 34579 | -2/Testing | Spotted Tracker 34579 | -2/Testing | Spotted Tracker 34580 | -2/Testing | Spotted Tracker 34583 | -2/Testing | Destroyed Tracker 34592 | -2/Testing | Destroyed Tracker 34601 | -2/Testing | Spotted Combat Programmer 34602 | -2/Testing | Spotted Combat Programmer 34603 | -2/Testing | Core integrity fell below 50% 34603 | -2/Testing | Destroyed Tracker 34603 | -2/Testing | Spotted Combat Programmer 34624 | -2/Testing | Destroyed Combat Programmer 34627 | -2/Testing | Destroyed Combat Programmer 34638 | -2/Testing | Destroyed Combat Programmer 34670 | -2/Testing | Found Prototype Device 34670 | -2/Testing | Identified Exp. Hardlight Generator 34817 | -2/Testing | Spotted PG-0ZX133J55U 34820 | -2/Testing | Destroyed 7 combat bots 34825 | -2/Testing | Destroyed PG-0ZX133J55U 34845 | -2/Testing | Found Prototype Device 34845 | -2/Testing | Identified Exp. Thermal Shield 34865 | -2/Testing | System corruption reached 10% 35026 | -2/Testing | Repaired Broken Adv. Cryofiber Web 35101 | -2/Testing | Spotted Fortress 35110 | -2/Testing | Destroyed Fortress 35243 | -2/Testing | Discovered new exit (range 6) 35249 | -2/Testing | Identified exit to Section 7 35356 | -2/Testing | Entered Section 7 35366 | -2/Section 7 | Found Alien Artifact 35366 | -2/Section 7 | Identified Integrity Redistributor 35366 | -2/Section 7 | Used Integrity Redistributor, redistributed integrity to core (+555) 35423 | -2/Section 7 | Spotted S7 Guard 35443 | -2/Section 7 | Destroyed S7 Guard 35539 | -2/Section 7 | Found Alien Artifact 35539 | -2/Section 7 | Identified Core Physics Calibrator 35696 | -2/Section 7 | Spotted S7 Guard 35714 | -2/Section 7 | Destroyed S7 Guard 35771 | -2/Section 7 | Found Alien Artifact 36017 | -2/Section 7 | Identified Integrated Thermoelectric Network 36017 | -2/Section 7 | Identified Core Expander 36017 | -2/Section 7 | Installed Core Expander, added new Power slot 36018 | -2/Section 7 | Installed Integrated Thermoelectric Network, gained heat-energy exchange potential 36191 | -2/Section 7 | Intercept squad dispatched 36213 | -2/Section 7 | Spotted Tracker 36213 | -2/Section 7 | Spotted Tracker 36216 | -2/Section 7 | Destroyed Tracker 36221 | -2/Section 7 | Destroyed Tracker 36259 | -2/Section 7 | Found Alien Artifact 36259 | -2/Section 7 | Identified Integrated Mediator 36259 | -2/Section 7 | Installed Integrated Mediator, increased core attachment efficiency 36265 | -2/Section 7 | Spotted Combat Programmer 36265 | -2/Section 7 | Spotted Combat Programmer 36269 | -2/Section 7 | Destroyed Combat Programmer 36395 | -2/Section 7 | Destroyed Combat Programmer 36397 | -2/Section 7 | Spotted Executioner 36399 | -2/Section 7 | Spotted Executioner 36433 | -2/Section 7 | Destroyed Executioner 36440 | -2/Section 7 | Destroyed Executioner 36460 | -2/Section 7 | Found Prototype Processor 36460 | -2/Section 7 | Identified Exp. Core Analyzer 36468 | -2/Section 7 | Found Exp. Core Analyzer 36570 | -2/Section 7 | Spotted Executioner 36570 | -2/Section 7 | Spotted Executioner 36641 | -2/Section 7 | Spotted B-99 Colossus 36668 | -2/Section 7 | Destroyed B-99 Colossus 36774 | -2/Section 7 | Found Integrated Reactor 36774 | -2/Section 7 | Installed Integrated Reactor, increased core energy generation (+10) 36778 | -2/Section 7 | Found Integrated Reactor 36778 | -2/Section 7 | Installed Integrated Reactor, increased core energy generation (+10) 36781 | -2/Section 7 | Found Integrated Reactor 36781 | -2/Section 7 | Installed Integrated Reactor, increased core energy generation (+10) 36844 | -2/Section 7 | Intercept squad dispatched 36845 | -2/Section 7 | Found Alien Artifact 36845 | -2/Section 7 | Identified LRC Insulator 36845 | -2/Section 7 | Installed LRC Insulator, gained EM resistance (25) 36856 | -2/Section 7 | First assault squad dispatched 36860 | -2/Section 7 | Found Alien Artifact 36860 | -2/Section 7 | Identified LRC Armor 36860 | -2/Section 7 | Installed LRC Armor, increased core integrity (+250) 36863 | -2/Section 7 | Found LRC Insulator 36863 | -2/Section 7 | Installed LRC Insulator, gained EM resistance (25) 36875 | -2/Section 7 | Spotted Tracker 36875 | -2/Section 7 | Spotted Tracker 36877 | -2/Section 7 | Destroyed Tracker 36880 | -2/Section 7 | Destroyed Tracker 36935 | -2/Section 7 | Spotted Combat Programmer 36937 | -2/Section 7 | Spotted Combat Programmer 36950 | -2/Section 7 | Destroyed Combat Programmer 36951 | -2/Section 7 | Destroyed Combat Programmer 37110 | -2/Section 7 | Spotted Striker 37115 | -2/Section 7 | Spotted Striker 37192 | -2/Section 7 | Found Alien Energy Gun 37192 | -2/Section 7 | Identified Sigix Sheargun 37199 | -2/Section 7 | Spotted Striker 37199 | -2/Section 7 | Spotted Striker 37202 | -2/Section 7 | Warped through subspace 37272 | -2/Section 7 | Found Transdimensional Reconstructor 37277 | -2/Section 7 | Found Transdimensional Reconstructor 37279 | -2/Section 7 | Found Transdimensional Reconstructor 37318 | -2/Section 7 | Found Exp. Core Analyzer 37460 | -2/Section 7 | Intercept squad dispatched 37480 | -2/Section 7 | Spotted Tracker 37481 | -2/Section 7 | Spotted Tracker 37481 | -2/Section 7 | Spotted Alpha 7 37491 | -2/Section 7 | Destroyed Tracker 37492 | -2/Section 7 | Destroyed Tracker 37503 | -2/Section 7 | Spotted Alpha 7 37513 | -2/Section 7 | Destroyed Alpha 7 37524 | -2/Section 7 | Spotted Combat Programmer 37524 | -2/Section 7 | Spotted Combat Programmer 37542 | -2/Section 7 | Destroyed Combat Programmer 37574 | -2/Section 7 | Destroyed Combat Programmer 37600 | -2/Section 7 | Destroyed Alpha 7 37740 | -2/Section 7 | Spotted B-90 Cyclops 37742 | -2/Section 7 | Destroyed B-90 Cyclops 37811 | -2/Section 7 | Found Alien Artifact 37811 | -2/Section 7 | Identified Integrated Dissipator 37811 | -2/Section 7 | Installed Integrated Dissipator, increased core heat dissipation (+20) 38163 | -2/Section 7 | Spotted S7 Guard 38190 | -2/Section 7 | Found Alien Artifact 38190 | -2/Section 7 | Identified Core Regenerator 38190 | -2/Section 7 | Used Core Regenerator, restored core integrity (+425) 38326 | -2/Section 7 | Discovered new exit (range 8) 38353 | -2/Section 7 | Identified exit to Access 38468 | -2/Section 7 | Repaired Imp. Energy Mantle 38469 | -2/Section 7 | Warped through subspace 38788 | -2/Section 7 | Destroyed Striker 38792 | -2/Section 7 | Destroyed Striker 38868 | -2/Section 7 | Destroyed Striker 38873 | -2/Section 7 | Destroyed Striker 38896 | -2/Section 7 | Found Alien Energy Cannon 38934 | -2/Section 7 | Found Sigix Sheargun 38987 | -2/Section 7 | Intercept squad dispatched 39017 | -2/Section 7 | Spotted Tracker 39018 | -2/Section 7 | Spotted Tracker 39018 | -2/Section 7 | Spotted Tracker 39020 | -2/Section 7 | Destroyed Tracker 39023 | -2/Section 7 | Destroyed Tracker 39030 | -2/Section 7 | Destroyed Tracker 39070 | -2/Section 7 | Destroyed 7 combat bots 39076 | -2/Section 7 | Spotted Combat Programmer 39078 | -2/Section 7 | Spotted Combat Programmer 39078 | -2/Section 7 | Spotted Combat Programmer 39099 | -2/Section 7 | Destroyed Combat Programmer 39125 | -2/Section 7 | High security lockdown imminent 39125 | -2/Section 7 | Destroyed Combat Programmer 39135 | -2/Section 7 | Destroyed Combat Programmer 39205 | -2/Section 7 | High security lockdown engaged 39227 | -2/Section 7 | Warped through subspace 39308 | -2/Section 7 | Entered Access 39308 | -1/Access | Evolved 2 slots: Weapon x2 39331 | -1/Access | Identified exit to Command 39679 | -1/Access | Spotted B-99 Colossus 39733 | -1/Access | Identified Sigix Shearcannon 39803 | -1/Access | Destroyed B-99 Colossus 39889 | -1/Access | Intercept squad dispatched 39924 | -1/Access | Spotted Tracker 39925 | -1/Access | Spotted Tracker 39931 | -1/Access | Destroyed Tracker 39932 | -1/Access | Destroyed Tracker 39958 | -1/Access | Spotted Combat Programmer 39989 | -1/Access | Destroyed Combat Programmer 39991 | -1/Access | Spotted Combat Programmer 39998 | -1/Access | Destroyed Combat Programmer 40106 | -1/Access | First assault squad dispatched 40127 | -1/Access | Warped through subspace 40143 | -1/Access | Identified Subatomic Replicator 40143 | -1/Access | Used Subatomic Replicator to replicate Sigix Shearcannon 40192 | -1/Access | Warped through subspace 40396 | -1/Access | Warped through subspace 40538 | -1/Access | Crushed by falling debris 40555 | -1/Access | Crushed by falling debris 40586 | -1/Access | Lost 3 parts (3u) 40774 | -1/Access | Entered Command 40793 | -1/Command | Identified exit to Surface 41077 | -1/Command | Found Spectral Analyzer 41095 | -1/Command | Spotted B-99 Colossus 41172 | -1/Command | Destroyed B-99 Colossus 41323 | -1/Command | First assault squad dispatched 41720 | -1/Command | Destroyed 9 combat bots 41856 | -1/Command | High security lockdown imminent 41936 | -1/Command | High security lockdown engaged 41972 | -1/Command | Build established: Scavenger-Executioner 42053 | -1/Command | Destroyed 15 combat bots 42116 | -1/Command | Spotted Investigator 42120 | -1/Command | Scanned by Researcher 42122 | -1/Command | Destroyed Investigator 42146 | -1/Command | Destroyed 11 combat bots 42249 | -1/Command | Destroyed Striker 42252 | -1/Command | Destroyed Executioner 42255 | -1/Command | Destroyed Executioner 42259 | -1/Command | Spotted Striker 42259 | -1/Command | Spotted Executioner 42271 | -1/Command | Destroyed Striker 42301 | -1/Command | Destroyed 18 combat bots 42385 | -1/Command | Spotted Striker 42387 | -1/Command | Destroyed Striker 42428 | -1/Command | Destroyed 7 combat bots 42465 | -1/Command | Spotted Striker 42467 | -1/Command | Destroyed Striker 42467 | -1/Command | Spotted Executioner 42467 | -1/Command | Spotted Striker 42473 | -1/Command | Destroyed Striker 42479 | -1/Command | Destroyed Executioner 42482 | -1/Command | Destroyed Striker 42491 | -1/Command | Spotted B-99 Colossus 42495 | -1/Command | Spotted Executioner 42495 | -1/Command | Spotted Striker 42495 | -1/Command | Spotted Alpha 7 42503 | -1/Command | Destroyed 9 combat bots 42510 | -1/Command | Spotted Executioner 42520 | -1/Command | System corruption reached 10% 42523 | -1/Command | Destroyed Striker 42529 | -1/Command | Destroyed Executioner 42543 | -1/Command | Spotted Striker 42548 | -1/Command | Core integrity fell below 50% 42563 | *** | Escaped! Last Messages --------------- 42556_ Ended siege mode. 42556_ I-47 Archangel distress signal jammed. 42557_ Penetrated by Slug. 42557_ Slug penetrates B-74 Champion. 42558_ I-47 Archangel distress signal jammed. 42560_ Acquired 5 matter. 42560_ I-47 Archangel distress signal jammed. 42561_ Acquired 5 matter. 42561_ Penetrated by Slug. 42561_ Slug penetrates G-73 Enforcer. 42561_ Slug penetrates Reinforced Barrier. 42561_ I-47 Archangel distress signal jammed. 42561_ M-36 Artificer repairs G-73 Enforcer. 42562_ Acquired 5 matter. 42562_ I-47 Archangel distress signal jammed. 42563_ Acquired 5 matter. 42563_ Quantum-Chain Reactor destroyed. 42563_ Arm. Scrap Engine damaged due to network destabilization (-6). 42563_ I-47 Archangel distress signal jammed. [Achievement: Superachiever] Map ----- +----------------------------------------------------+ | | | | | | | ??????????????????????????????????????????######## | | ??????????????????????????????????????????# | | ??????????????????????????????????????????# | | ??????????????????????????????????????????# "" | | ??????????????????????????????????????????# """" | | ??????????????????????????????????????????# """" | | ??????????????????????????????????????????# "" | | ??????????????????????????????????????????# | | ??????????????????????????????????????????# | | ??????????????????????????????????????????######"# | | ???????????????????????????????????????????# # | | ???????????????????????????????????????????# # | | ???????????????????????????????????????????# + | | ???????????????????????????????????????????# # | | ??????????????????###?#####????????????????# # | | ?????????##########;!##!!=#######??????????# # | | ?????????# ##;/!=/%*!=! BB#??????????# # | | ?????????# #?#[=*/[/!!!*BB#??????????# # | | ?????????#*=!* #?#=!^^^^^^*[= #E#E#K#7#########" | | ??? "" #[**[== ###=!^g=%%! [ ! ^ ^^^ ######## | | ? ===[%![[%=#!*[^mg!*[* ^^! ^ ^ ^" | | ? !=!!![%=*=%[%!=%K%i%!^! !%^ ^ " | | ########%]*==%%==*#==%g*b@=["^ ^^^!^^ "= | | *#![* ##!*=!%=%=!"??????^^ ^="% | | + ##=[==*%""""????????????^######## | | ## # ##=[!^^^= ??????????????????????# | | ?# ??# ##[!=%!!% ??????????????????????# | | ?# ????# ###[====% ??????????????????????# | | ?# ??????# """ #?###;;##"##????????????????????# | | ?????????# """T #???######"####?????????????????# | | ?????????# """" ####### # """################### | | ?????????# "" " " # "" # | | ?????????# ############ # """" # | | ?????????####+####??????????# """ # """" # | | ????????????# #?????????????# T""" # "" # | | ???????????? #?????????????# """" # # | | ???????????? +?????????????# """ # % | | ????????????###?????????????# " =! =% | | ????????????????????????????###########"" = % *! | | ??????????????????????????????????????# # =![ = | | ??????????????????????????????????????# ########## | | ??????????????????????????????????????# #????????# | | ??????????????????????????????????????# #???????#" | | ??????????????????????????????????????# #????####! | | ?????????????????????????????????????# ##### !% | | ?????????????????????????????????????# %[[ | | ?????????????????????????????????????# ##### /=| | +----------------------------------------------------+ Best States ------------- Heat Dissipation 153 Coolant Potential 120 Energy Generation 126 Energy Capacity 2109 Matter Stores 300 Matter Capacity 300 Sight Range 24 Robot Scan Range 20 Terrain Scan Range 24 Terrain Scan Density 10 Jamming Range 16 Power Amplification 30 Additional Mass Support 20 Base Temperature (-) 200 EM Shielding 4 Armor Coverage 1250 Resistance: TH 50 Resistance: EM 100 Phase Shifting 20 Evasion (%) 60 Targeting Accuracy 12 Core Analysis 12 Recoil Reduction 5 Matter Filtering 30 Particle Charging 25 Salvage Targeting 4 Offensive Hacking 42 Defensive Hacking 12 Authchip Count 9 Trap Extractor Capacity 8 Item Schematics ----------------- Huge Storage Unit | -10/Materials | Hacked Cargo Storage Unit | -10/Materials | Hacked Imp. Cryofiber Web | -6/Extension | Hacked Biometal Leg | -5/Factory | Hacked Cld. Plasma Cannon | -5/Factory | Hacked Assault Drone Bay | -5/Zhirov | Free Exp. Heat Sink | -5/Zhirov | Free Exp. Optical Array | -5/Zhirov | Free Imp. Arc Thrower | -5/Zhirov | Free Enh. Nova Cannon | -4/Factory | Hacked Adv. Heavy Siege Treads | -4/Armory | Hacked Enh. Armored Heavy Treads | -2/Testing | Hacked Exp. Field Recycling Unit | -2/Section 7 | Archive Cld. Antigrav System | -2/Section 7 | Archive Hvy. Dispersion Rifle | -2/Section 7 | Archive Coolant Network | -2/Section 7 | Archive Robot Schematics ------------------ O-24 Administrator | -6/Hub_04(d) | Hacked T-07 Excavator | -2/Section 7 | Archive Fabricated ------------ Imp. Cryofiber Web | x2 | -5/Factory Enh. Nova Cannon | x2 | -4/Factory A-27 Freighter | x1 | -4/Armory | Preloaded Alien Tech Used ----------------- Integrated Reactor Transdimensional Reconstructor LC Capacitor Phase Armor Integrity Redistributor Core Physics Calibrator Core Expander Integrated Thermoelectric Network Integrated Mediator LRC Insulator LRC Armor Sigix Sheargun Integrated Dissipator Core Regenerator Sigix Shearcannon Subatomic Replicator Achievements -------------- 404 Cannon Specialist Superachiever Superinsulated Challenges ------------ None Game ------ Seed TrapFissionKatana Manual? 0 Play Time 07:51:56 Cumulative 392.6 hours Start 2024.11.14 @ 17:24:51 End 2024.11.18 @ 17:48:38 Sessions 37 Manual Loads 0 Difficulty Rogue Special Mode None Game No. 185 Rogue 185 Adventurer 0 Explorer 0 Win Type 0 Total 13 Types 8/1/4/0/0/0/0/0/0 Lore% 86 Gallery% 90 Achievement% 76 Wizard Run 0 Options --------- Layout 0 ASCII 0 Keyboard 0 Movement Mouse Keybinds 0 Fullscreen 2 Font 12/Smallcaps Map View 83x54 Zoom Use 0% Tactical HUD 1 Map Filters NONE Filters NONE Steam 1 RUN: a696b27b-98d2-428c-b36e-9a376ac65f0a